Cogmind - Beta 11 X7 @@@ ROGUE MODE // 2021.09.16 @ 10:40:37 Player: Wheels PlusPlus for Vectis Result: Escaped singularity! Performance ------------- Evolutions (9) 4500 Regions Visited (35) 7000 Robots Destroyed (416) 2080 Value Destroyed (22484) 22484 Prototype IDs (102) 2040 Alien Tech Used (9) 1800 Bonus (45566) 45566 TOTAL SCORE: 85470 Bonus ------- High Alert Combat Kills 4509 Follower Combat Kills 663 Network Hubs Disabled 200 Met Imprinter 300 Destroyed Z-Imprinter 1000 Met Zhirov 300 Met Warlord at Base 500 MAIN.C Attacked Warlord 500 Warlord Defense Kill 690 A7 Reached Mainframe 300 Met Warlord at Research 2000 Destroyed MAIN.C Guards 500 Met MAIN.C 5000 Hacked MAIN.C 300 Destroyed MAIN.C Shell 5000 Destroyed MAIN.C 10000 Met Architect 300 Destroyed A8 300 Destroyed A6 400 Destroyed A5 500 Destroyed A4 700 Destroyed A3 800 Destroyed Architect 15000 Win 3000 Friendly Fire -7196 Cogmind --------- Core Integrity 220/1600 Matter 300/300 Energy 944/950 System Corruption 72% Temperature Cool (0) Movement Rolling (110) Ox1 Location Near Former Tau Ceti IV Parts ------- > --- POWER (3) -------- Improved Quantum Reactor Vortex Chain Reactor > --- PROPULSION (6) --- Centrium Wheel Centrium Wheel Centrium Wheel High-density Centrium Wheel High-density Centrium Wheel High-density Centrium Wheel > --- UTILITY (13) ----- Desublimator High-capacity Storage Unit Experimental Targeting Computer Experimental Targeting Computer Experimental Targeting Computer Advanced Armor Integrity Analyzer Advanced Kinecellerator Experimental Weapon Cycler Experimental Phase Shifter Centrium Heavy Armor Plating Improved Energy Mantle > --- WEAPON (4) ------- Hypervelocity Linear Accelerator Hypervelocity Linear Accelerator Hypervelocity Linear Accelerator Hypervelocity Linear Accelerator > --- INVENTORY (20) --- Antimatter Reactor Improved Quantum Reactor Enhanced Flexi-carbon Leg Experimental Biometal Leg Experimental Biometal Leg Experimental Biometal Leg Experimental Biometal Leg Coolant Network Experimental Matter Compressor (489) Experimental Weapon Cycler Experimental Weapon Cycler Centrium Light Armor Plating Experimental Powered Armor Neutron Cannon Neutron Cannon Neutron Cannon Neutron Cannon Compact Linear Accelerator Enhanced Gamma Bomb Array Peak State ------------ > --- POWER ------------ Reinforced Quantum Reactor Reinforced Quantum Reactor Reinforced Quantum Reactor > --- PROPULSION ------- High-density Centrium Wheel High-density Centrium Wheel High-density Centrium Wheel High-density Centrium Wheel High-density Centrium Wheel High-density Centrium Wheel > --- UTILITY ---------- Advanced Power Amplifier Experimental Coolant Injector High-capacity Storage Unit Experimental Energy Well Advanced Matter Compressor Experimental Weapon Cycler Advanced Phase Shifter Centrium Light Armor Plating Heavy Regenerative Plating Heavy Regenerative Plating AEGIS Remote Shield > --- WEAPON ----------- Improved Potential Cannon Sigix Broadsword > --- INVENTORY -------- Zero-point Reactor Vortex Chain Reactor Centrium Wheel Centrium Wheel Centrium Wheel Experimental Targeting Computer Experimental Targeting Computer Advanced Armor Integrity Analyzer Energy Filter Precision Energy Filter Experimental Weapon Cycler Advanced Phase Shifter Advanced Phase Shifter AEGIS Remote Shield Long-range Tractor Beam Hypervelocity Multirail Compact Linear Accelerator Graviton Cannon Graviton Cannon [Rating: 255] Favorites ----------- Power Vortex Chain Reactor Engine Cooled Ion Engine Power Core Micro Fission Core Reactor Vortex Chain Reactor Propulsion High-density Centrium Wheel Treads Heavy Treads Leg Aluminum Leg Wheel High-density Centrium Wheel Hover Unit Cooled Gravmag System Flight Unit Improved Flight Unit Utility Advanced Hacking Suite Device Experimental Heat Sink Storage High-capacity Storage Unit Processor Experimental Targeting Computer Hackware Advanced Hacking Suite Protection Heavy Regenerative Plating Weapon Cooled Plasma Cannon Energy Gun Particle Gun Energy Cannon Cooled Plasma Cannon Ballistic Gun Light Assault Rifle Ballistic Cannon Hypervelocity Linear Accelerator Launcher Grenade Launcher Special Weapon Improved Remote Datajack Impact Weapon Shock Maul Slashing Weapon Sigix Broadsword Piercing Weapon CR-A16's Pointy Stick Build | -11 -10 -9 -9 -9 -7 -7 -7 -7 -7 -6 -6 -6 -6 -6 -6 -6 -6 -5 -5 -5 -5 -4 -4 -4 -4 -4 -3 -3 -3 -2 -2 -2 -1 -1 -1 ------- Run | Scr Mat Mat Sto Rec Fac Low Low Zio Dee Pro Fac Was Fac Ext Cet Arc Hub Fac Upp Upp Zhi Pro Fac Upp Upp War Pro Res Qua Res Tes Sec Acc Com Ac0 Slots Evolved 18 | . . 2 . . 4 . . . . . 2 . . . . . . 2 . . . . 2 . . . . 2 . 2 . . 2 . . Power 2 | . . . . . . . . . . . . . . . . . . 1 . . . . . . . . . . . . . . 1 . . Propulsion 4 | . . . . . 2 . . . . . . . . . . . . 1 . . . . 1 . . . . . . . . . . . . Utility 11 | . . 1 . . 2 . . . . . 2 . . . . . . . . . . . 1 . . . . 2 . 2 . . 1 . . Weapon 1 | . . 1 . . . . . . . . . . . . . . . . . . . . . . . . . . . . . . . . . Parts Attached 681 | 2 17 6 52 . 12 2 18 17 14 . 15 . 13 41 7 3 9 48 3 7 4 4 13 5 8 27 3 6 52 21 20 11 8 92 121 Power 43 | . 3 1 7 . . . . 1 2 . . . 2 3 . 1 1 4 . . . 1 2 . . 1 . . . . . . 1 7 6 Engine 14 | . 3 1 5 . . . . 1 . . . . . 2 . . 1 1 . . . . . . . . . . . . . . . . . Core 6 | . . . . . . . . . . . . . . . . . . 3 . . . . 1 . . . . . . . . . 1 1 . Reactor 23 | . . . 2 . . . . . 2 . . . 2 1 . 1 . . . . . 1 1 . . 1 . . . . . . . 6 6 Propulsion 106 | . 6 1 17 . 2 . 5 5 1 . . . 1 10 1 1 . 12 . 2 1 . 2 . . 4 . 1 14 1 2 . . 4 13 Treads 34 | . 2 . 6 . . . . . . . . . . 3 1 1 . 5 . 2 . . 2 . . 4 . 1 6 1 . . . . . Leg 17 | . 4 . . . . . . . . . . . . 4 . . . 6 . . 1 . . . . . . . . . . . . 1 1 Wheel 28 | . . 1 1 . . . . . . . . . . 2 . . . . . . . . . . . . . . 7 . 2 . . 3 12 Hover 8 | . . . 6 . 1 . . . . . . . . . . . . . . . . . . . . . . . 1 . . . . . . Flight 19 | . . . 4 . 1 . 5 5 1 . . . 1 1 . . . 1 . . . . . . . . . . . . . . . . . Utility 327 | 2 4 3 15 . 8 2 6 3 7 . 9 . 6 12 1 1 6 16 3 3 3 1 9 2 8 12 3 5 23 20 15 9 5 51 54 Device 208 | 1 2 2 10 . 4 1 4 2 5 . 4 . 4 6 1 . 4 10 2 2 2 1 4 2 5 5 2 3 14 14 11 7 5 35 34 Storage 17 | . 1 . 1 . . . . . 1 . . . . . . . . 1 . . . . 1 . . . . . 1 1 1 1 . 4 4 Processor 22 | 1 1 1 1 . 1 . . . . . 1 . 1 . . . . 1 . 1 . . . . . 1 . 1 1 3 . . . 5 2 Hackware 12 | . . . . . 1 . . . . . 3 . . 1 . 1 . 1 . . . . 1 . . . . . . . 3 1 . . . Protection 68 | . . . 3 . 2 1 2 1 1 . 1 . 1 5 . . 2 3 1 . 1 . 3 . 3 6 1 1 7 2 . . . 7 14 Artifact . | . . . . . . . . . . . . . . . . . . . . . . . . . . . . . . . . . . . . Weapon 205 | . 4 1 13 . 2 . 7 8 4 . 6 . 4 16 5 . 2 16 . 2 . 2 . 3 . 10 . . 15 . 3 2 2 30 48 Energy Gun 24 | . 2 1 7 . 1 . 1 . . . . . . 2 . . 1 . . . . . . . . 3 . . . . 2 . 1 3 . Energy Cannon 49 | . . . . . . . . . . . . . . . . . . 6 . 1 . 2 . 2 . 7 . . 9 . . . . 7 15 Ballistic Gun 57 | . 2 . 5 . 1 . 5 7 1 . 4 . . 4 3 . 1 6 . . . . . . . . . . . . 1 1 . 8 8 Ballistic Cannon 41 | . . . . . . . . . . . . . 3 3 2 . . . . . . . . . . . . . 5 . . 1 1 7 19 Launcher 4 | . . . 1 . . . . . . . 1 . . . . . . . . 1 . . . 1 . . . . . . . . . . . Special Weapon 3 | . . . . . . . . . 1 . . . . . . . . 1 . . . . . . . . . . . . . . . 1 . Impact Weapon 3 | . . . . . . . . . . . . . 1 2 . . . . . . . . . . . . . . . . . . . . . Slashing Weapon 19 | . . . . . . . 1 1 1 . 1 . . 4 . . . 1 . . . . . . . . . . 1 . . . . 3 6 Piercing Weapon 5 | . . . . . . . . . 1 . . . . 1 . . . 2 . . . . . . . . . . . . . . . 1 . Special Melee Weapon . | . . . . . . . . . . . . . . . . . . . . . . . . . . . . . . . . . . . . Unidentified Prototypes 87 | . . . 13 . 1 . 1 1 3 . 1 . 4 . 2 . . 3 . . 3 . . . . 7 . 1 7 3 5 4 . 12 16 Corrupted Parts 8 | . . . . . . . . . . . . . . . 2 2 . . . . . . . . . . . . . . . . . 3 1 System Corruption 47 | . . . . . . . . . . . . . . . 16 8 . . . . . . . . . . . . . . . . . 22 1 Parts Lost 46 | . . . 1 . . . . 1 1 . . . . 3 . . 4 2 . . . . . 2 . 1 1 3 2 . . . . 8 17 Power . | . . . . . . . . . . . . . . . . . . . . . . . . . . . . . . . . . . . . Propulsion 8 | . . . . . . . . 1 1 . . . . 1 . . . . . . . . . . . 1 . 1 . . . . . . 3 Utility 30 | . . . 1 . . . . . . . . . . 2 . . 2 2 . . . . . 1 . . 1 1 1 . . . . 8 11 Weapon 8 | . . . . . . . . . . . . . . . . . 2 . . . . . . 1 . . . 1 1 . . . . . 3 Highest Loss Streak 3 | . . . 1 . . . . 1 1 . . . . 2 . . 3 1 . . . . . 2 . 1 1 3 1 . . . . 3 3 Average Slot Usage (%) 88 | . 99 100 98 100 90 100 98 96 90 78 92 93 95 92 81 76 77 82 88 87 87 87 84 84 82 78 84 83 86 82 90 90 90 81 90 Engine 2 | . 14 11 10 11 7 7 7 6 3 . . . . 2 6 3 1 1 5 5 5 1 . . . . . . . . . . . . . Core 1 | . . . . . . . . . . . . . . . . . . 7 5 5 5 5 5 10 10 3 . . . . . . 3 2 . Reactor 3 | . . . . . . . . . 3 7 6 6 6 2 . 2 4 . . . . 3 4 . . 3 5 4 4 4 4 4 3 3 7 Treads 6 | . 20 18 7 . . . . . . . . . . . 18 13 12 13 11 10 11 11 14 15 15 16 20 18 6 3 . . . . . Wheel 10 | . . 3 7 . . . . . . . . . . 1 . . . . . . . . . . . . . . 15 16 24 25 23 22 22 Flight 3 | . . . 3 . . 7 12 27 27 28 25 25 25 17 . . . 2 5 5 2 . . . . . . . . . . . . . . Device 19 | . 21 13 20 22 21 22 21 17 18 14 15 18 26 17 12 7 10 17 16 16 15 16 15 24 15 9 9 16 21 27 28 23 21 21 19 Storage 5 | . 1 11 7 . . . . . . . . . . . . . . 2 5 5 5 5 5 5 5 5 5 4 4 6 4 6 7 10 6 Processor 4 | . 5 8 . . 3 . . . . . . . 3 . . . . . . . . . . . . . . . 4 8 8 8 6 1 14 Hackware 4 | . . . . . 3 7 7 7 7 7 19 18 6 11 6 10 12 10 5 5 5 5 9 10 10 10 10 8 4 1 7 9 11 1 . Protection 6 | . . . 3 11 5 7 7 10 7 7 6 6 5 10 12 12 10 4 11 11 11 11 9 . 7 10 15 11 6 3 . . . 7 3 Energy Gun 3 | . 25 33 20 . . . 1 . . . . . . 1 . . 1 . . . . . . . . . . . . . 6 4 2 . . Energy Cannon 4 | . . . . . . . . . . . . . . . . . . 10 22 21 22 21 20 20 20 19 20 18 12 . . . . . 1 Ballistic Gun 4 | . 2 . 11 33 22 23 22 25 20 14 15 12 6 8 18 25 22 7 . . . . . . . . . . . . 1 3 3 . . Ballistic Cannon 3 | . . . . . . . . . . . . . 8 10 5 . . . . . . . . . . . . . 2 4 . . . 2 12 Slashing Weapon 1 | . . . . . . . . . . . 3 6 3 1 . . . . . . . . . . . . . . . 4 4 4 3 2 . Naked Turns . | . . . . . . . . . . . . . . . . . . . . . . . . . . . . . . . . . . . . Heaviest Build 252 | 14 22 26 31 22 29 24 29 28 28 23 23 22 30 66 66 71 71 88 88 89 89 91 117 91 109 145 126 130 140 127 128 128 143 252 221 Greatest Support 210 | 20 40 40 46 22 44 34 44 29 26 23 23 23 35 65 120 160 160 180 140 140 140 140 210 210 210 210 191 201 208 120 120 120 120 120 120 Greatest Overweight (x) 6 | . . 2 2 . . . 1 6 1 . . . . 6 . . . . . . . . . . . . . . 1 1 1 1 1 2 2 Average Overweight (x) . | . . . . . . . . . . . . . . . . . . . . . . . . . . . . . . 1 . . 1 1 1 Largest Inventory Capacity 20 | 8 10 10 10 5 5 5 5 5 5 5 5 5 5 5 5 5 5 15 15 15 15 15 20 20 20 20 20 20 20 20 20 20 20 20 20 Average Capacity 14 | 7 5 10 8 5 5 5 5 5 5 5 5 5 5 5 5 5 5 9 15 15 15 15 19 20 20 20 20 20 20 20 20 20 20 20 20 Most Carried 20 | 8 10 10 10 5 5 5 5 5 5 5 5 5 5 5 5 5 5 15 15 15 15 15 18 18 20 20 20 20 20 20 20 20 20 20 20 Average Carried 13 | 6 5 9 8 4 4 4 4 4 4 5 4 4 4 4 4 4 4 7 14 14 14 14 15 15 19 19 19 19 18 19 19 19 18 16 19 Final Capacity 20 | 5 10 10 5 5 5 5 5 5 5 5 5 5 5 5 5 5 5 15 15 15 15 15 20 20 20 20 20 20 20 20 20 20 20 20 20 Final Carried 20 | 5 10 10 5 5 5 5 5 5 5 5 4 5 5 5 5 5 5 13 15 14 15 15 18 17 20 19 19 20 20 20 20 19 20 20 20 Class Distribution -------------------- 16% | Scavenger-Gunner 15% | Mutant 12% | Hacker-Tank 12% | Generator-Mutant 9% | Scavenger-Tank 7% | Pyromaniac-Tank 6% | Hacker-Mutant 4% | Tank 3% | Derelict-Tank 3% | Gunner Dominant Class ---------------- Mutant | -10/Materials Gunner | -9/Materials Gunner | -9/Storage Scavenger-Tank | -9/Recycling Scavenger-Tank | -7/Factory Scavenger-Tank | -7/Lower Caves Scavenger-Tank | -7/Lower Caves Derelict-Tank | -7/Zion Mutant | -7/Deep Caves Mutant | -6/Proximity Caves Hacker-Mutant | -6/Factory Hacker-Mutant | -6/Waste Mutant | -6/Factory Hacker-Sprinter | -6/Extension Scavenger-Tank | -6/Cetus Scavenger-Tank | -6/Archives Scavenger-Tank | -6/Hub_04(d) Scavenger-Tank | -5/Factory Pyromaniac-Tank | -5/Upper Caves Pyromaniac-Tank | -5/Upper Caves Pyromaniac-Tank | -5/Zhirov Pyromaniac-Tank | -4/Proximity Caves Hacker-Tank | -4/Factory Hacker-Tank | -4/Upper Caves Hacker-Tank | -4/Upper Caves Hacker-Tank | -4/Warlord Hacker-Tank | -3/Proximity Caves Hacker-Tank | -3/Research Tank | -3/Quarantine Mutant | -2/Research Hacker-Mutant | -2/Testing Hacker-Mutant | -2/Section 7 Hacker-Mutant | -1/Access Generator-Mutant | -1/Command Scavenger-Gunner | -1/Access_0 Resources | -11 -10 -9 -9 -9 -7 -7 -7 -7 -7 -6 -6 -6 -6 -6 -6 -6 -6 -5 -5 -5 -5 -4 -4 -4 -4 -4 -3 -3 -3 -2 -2 -2 -1 -1 -1 ----------- Run | Scr Mat Mat Sto Rec Fac Low Low Zio Dee Pro Fac Was Fac Ext Cet Arc Hub Fac Upp Upp Zhi Pro Fac Upp Upp War Pro Res Qua Res Tes Sec Acc Com Ac0 Matter Collected 16024 | 220 152 60 701 25 173 145 262 53 410 29 . . 269 1490 426 110 851 716 40 24 . 136 141 92 88 301 15 5 937 1778 218 416 203 3514 2024 Remotely 2427 | . . . . . . . . . . . . . . . . . . . . . . . . . . . . . . . . . 128 1409 890 Salvage Created 21347 | 162 1088 285 1864 106 216 78 164 . 379 . . . 264 1117 388 110 1585 1681 83 237 . 228 1184 176 59 197 139 93 358 1429 1008 587 351 3070 2661 Parts 925 | 11 71 9 85 2 14 2 10 . 18 . . . 14 40 19 8 77 69 4 16 . 11 35 9 2 7 8 2 18 33 44 31 20 114 122 Haulers Intercepted 21 | . 2 . 6 . 1 . . . . . . . 2 . . . 2 3 . . . . . . . . . . . 2 1 2 . . . Recyclers Shooed 13 | 1 4 1 3 . . . . . . . . . . 1 . . . 1 . . . . . . . . . . . . . . 1 1 . Parts Field Recycled . | . . . . . . . . . . . . . . . . . . . . . . . . . . . . . . . . . . . . Retrieved Matter . | . . . . . . . . . . . . . . . . . . . . . . . . . . . . . . . . . . . . Parts Self-Destructed 175 | . . . . . . 2 10 . . . . . . . . . . . 7 16 . 11 . 7 2 112 8 . . . . . . . . Prevented 25 | . . . . . . . 1 . . . . . . . . . . . . . . . . . . 24 . . . . . . . . . Kills | -11 -10 -9 -9 -9 -7 -7 -7 -7 -7 -6 -6 -6 -6 -6 -6 -6 -6 -5 -5 -5 -5 -4 -4 -4 -4 -4 -3 -3 -3 -2 -2 -2 -1 -1 -1 ------- Run | Scr Mat Mat Sto Rec Fac Low Low Zio Dee Pro Fac Was Fac Ext Cet Arc Hub Fac Upp Upp Zhi Pro Fac Upp Upp War Pro Res Qua Res Tes Sec Acc Com Ac0 Combat Hostiles Destroyed 310 | . 19 2 23 1 2 3 5 . 2 . . . 3 17 4 . 17 22 1 9 . 9 18 7 1 5 4 1 11 26 10 8 4 37 39 Melee 7 | . . . . . . . . . . . . . 2 . . . 2 . . . . . . . . . . . . . 2 . . 1 . Guns 155 | . 19 2 21 1 2 3 5 . 2 . . . . 3 3 . 15 11 . . . . . . . 3 . . . . 7 8 4 28 18 Cannons 124 | . . . . . . . . . . . . . 1 14 1 . . 11 . 8 . 9 14 2 1 2 4 . 10 26 . . . 3 18 AOE 13 | . . . . . . . . . . . . . . . . . . . . . . . 3 5 . . . . . . . . . 2 3 Classes Destroyed 22 | 2 6 1 1 1 . . 1 . 4 . . . . 2 . . . . . . . . . . . 2 . . . 1 1 . . . . Worker 33 | . 8 1 6 . 2 . . . . . . . . . . . 7 . . . . . 3 . . . . . . . . . 2 4 . Builder 11 | . 1 . 1 . 1 . . . . . . . . 3 . . 3 1 . . . . . . . . . . . 1 . . . . . Tunneler 6 | 3 1 . . . . . . . . . . . . . . . 2 . . . . . . . . . . . . . . . . . . Hauler 21 | . 2 . 6 . 1 . . . . . . . 2 . . . 2 3 . . . . . . . . . . . 2 1 2 . . . Recycler 14 | 1 1 2 3 . . . . . . . . . . 2 . . 1 2 . . . . . . . . . . . 1 . . . 1 . Operator 1 | . . . . . . . . . . . . . . . . . . . . . . . . . . . . . . 1 . . . . . Watcher 10 | . 3 2 2 . . . . . . . . . . . 1 . 2 . . . . . . . . . . . . . . . . . . Swarmer 58 | . 6 . . . . 2 4 . . . . . 3 . . . . 4 . 9 . 9 . 5 . 1 4 . . 1 . 5 . 5 . Saboteur 1 | . . . . . . . . . . . . . . . . . . . . . . . . . . 1 . . . . . . . . . Grunt 91 | . 13 . 9 . 1 . . . . . . . . 8 2 . 13 11 . . . . 10 . . 1 . . . 8 3 1 . 11 . Brawler 6 | . . . 2 . . . . . . . . . . 1 . . . . . . . . 2 . . . . . . 1 . . . . . Duelist 1 | . . . . . . . . . . . . . . . . . . . . . . . . . . . . . . . . . . 1 . Researcher 3 | . . . . . . . . . . . . . . . . . . . . . . . . . . . . . . . 3 . . . . Sentry 28 | . . 2 12 . 1 1 . . . . . . . 4 . . 3 1 . . . . . . . . . 1 . 2 . . . 1 . Demolisher 1 | . . . . 1 . . . . . . . . . . . . . . . . . . . . . . . . . . . . . . . Hunter 18 | . . . . . . . 1 . . . . . . 1 1 . 1 2 . . . . . 2 . . . . . . 1 . 4 5 . Programmer 33 | . . . . . . . . . . . . . . 1 . . . 4 . . . . 6 . 1 . . . 3 2 6 2 . 8 . Behemoth 2 | . . . . . . . . . . . . . . 1 . . . . 1 . . . . . . . . . . . . . . . . Cetus Guard 1 | . . . . . . . . . . . . . . . 1 . . . . . . . . . . . . . . . . . . . . Quarantine Guard 8 | . . . . . . . . . . . . . . . . . . . . . . . . . . . . . 8 . . . . . . M Guard 2 | . . . . . . . . . . . . . . . . . . . . . . . . . . . . . . . . . . 2 . Enhanced Grunt 26 | . . . . . . . . . 2 . . . . . . . . . . . . . . . . . . . . . . . . . 24 Enhanced Sentry 1 | . . . . . . . . . . . . . . . . . . . . . . . . . . . . . . . . . . . 1 Enhanced Hunter 8 | . . . . . . . . . . . . . . . . . . . . . . . . . . . . . . . . . . . 8 Combat Programmer 2 | . . . . . . . . . . . . . . . . . . . . . . . . . . . . . . . . . . 2 . Striker 7 | . . . . . . . . . . . . . . . . . . . . . . . . . . 2 . . . 5 . . . . . Executioner 7 | . . . . . . . . . . . . . . . . . . . . . . . . . . . . . . 7 . . . . . Z-Technician 2 | . . . . . . . . . 2 . . . . . . . . . . . . . . . . . . . . . . . . . . Z-Light 1 | . . . . . . . . . 1 . . . . . . . . . . . . . . . . . . . . . . . . . . Assembled 1 | . . . . . . . . . 1 . . . . . . . . . . . . . . . . . . . . . . . . . . Thug 2 | . . . . . . . . . . . . . . 2 . . . . . . . . . . . . . . . . . . . . . Savage 1 | . . . . . . . 1 . . . . . . . . . . . . . . . . . . . . . . . . . . . . Butcher 5 | . . . . . . . . . 2 . . . . 2 1 . . . . . . . . . . . . . . . . . . . . Guerrilla 2 | . . . . . . . . . . . . . . . 2 . . . . . . . . . . . . . . . . . . . . Best Kill Streak 14 | 2 7 3 8 1 3 3 5 . 2 . . . 3 7 2 . 14 6 1 5 . 5 4 5 1 3 4 1 4 7 4 5 6 10 8 Combat Bots Only 10 | . 5 1 7 1 1 3 5 . 1 . . . 3 7 2 . 7 6 1 5 . 5 4 5 1 3 4 1 4 5 4 5 4 10 8 Max Kills in Single Turn 5 | 1 2 1 2 1 1 1 1 . 1 . . . 1 2 1 . 3 2 1 1 . 1 2 5 1 1 1 1 1 1 1 2 2 2 2 Gunslinging 1 | . 1 . . . . . . . . . . . . . . . . . . . . . . . . . . . . . . . . . . Exploded 5 | . . . . . . . . . . . . . . . . . . . . . . . 2 5 . . . . . . . . . 1 1 Melee 1 | . . . . . . . . . . . . . 1 . . . 1 . . . . . . . . . . . . . 1 . . 1 . Uniques/NPCs Destroyed 10 | . . . 1 . . . . . 1 . . . . . . . . . . . . . . . . . . . . . . . . 2 6 01-MTF (-9/Storage) Z-Imprinter (-7/Deep Caves) MAIN.C Shell (-1/Command) MAIN.C (-1/Command) A8 (-1/Access_0) A6 (-1/Access_0) A5 (-1/Access_0) A4 (-1/Access_0) A3 (-1/Access_0) Architect (-1/Access_0) Combat | -11 -10 -9 -9 -9 -7 -7 -7 -7 -7 -6 -6 -6 -6 -6 -6 -6 -6 -5 -5 -5 -5 -4 -4 -4 -4 -4 -3 -3 -3 -2 -2 -2 -1 -1 -1 -------- Run | Scr Mat Mat Sto Rec Fac Low Low Zio Dee Pro Fac Was Fac Ext Cet Arc Hub Fac Upp Upp Zhi Pro Fac Upp Upp War Pro Res Qua Res Tes Sec Acc Com Ac0 Damage Taken 29849 | . 489 146 790 . 82 177 234 106 95 40 70 . 217 1068 141 . 2255 1246 119 317 . 316 1247 418 . 919 136 642 816 1371 426 185 252 6316 9213 Core 2216 | . 123 . 165 . 14 13 57 21 20 . 5 . 32 287 . . 74 96 21 37 . 27 154 13 . 55 24 . 34 42 12 12 . 537 341 Absorbed by Shields 13093 | . . . . . 35 68 96 13 30 . . . . 86 110 . . . . . . . . . . 183 21 . 205 465 396 177 245 4283 6680 Reduced by Siege Mode 285 | . . . . . . . . . . . . . . . . . 28 99 . 18 . 12 39 35 . 5 10 . 18 21 . . . . . Core Remaining (%) 68 | 100 50 . . 58 . . . . . 82 . . . . . . 53 . . . . 81 . . . . 78 . 91 . . 74 . . 13 Volleys Fired 1303 | 17 82 18 137 6 17 9 16 . 7 . . . 1 62 18 9 45 55 2 16 . 11 40 9 2 16 6 14 41 134 54 27 14 161 257 Largest 4 | 2 2 3 3 3 3 3 3 . 4 . . . 3 4 4 4 4 4 4 4 . 4 4 4 4 4 4 4 4 1 1 1 1 4 4 Hottest 420 | 90 130 195 195 63 93 71 72 . 92 . . . 144 219 157 112 164 190 420 140 . 140 420 420 140 140 140 140 365 60 90 90 70 225 360 Shots Fired 3153 | 34 164 54 358 18 51 27 48 . 24 . . . 4 198 72 34 177 163 8 64 . 44 157 29 8 50 18 56 153 134 54 26 14 386 526 Gun 1655 | 34 164 54 357 18 51 27 48 . 24 . . . . 82 60 34 177 64 . . . . . . . 8 . . . . 54 19 12 289 79 Cannon 1494 | . . . . . . . . . . . . . 4 116 12 . . 99 8 64 . 44 157 27 8 42 18 56 153 134 . 7 2 96 447 Launcher 3 | . . . 1 . . . . . . . . . . . . . . . . . . . . 2 . . . . . . . . . . . Special 1 | . . . . . . . . . . . . . . . . . . . . . . . . . . . . . . . . . . 1 . Kinetic 1737 | . . . 145 18 50 27 48 . 24 . . . 4 181 72 34 166 64 . . . . . . . . . . 10 134 3 21 14 338 384 Thermal 1341 | 34 164 54 212 . . . . . . . . . . 17 . . 11 99 8 64 . 44 157 27 8 42 18 56 105 . 51 5 . 23 142 Explosive 3 | . . . 1 . . . . . . . . . . . . . . . . . . . . 2 . . . . . . . . . . . Electromagnetic 25 | . . . . . 1 . . . . . . . . . . . . . . . . . . . . . . . . . . . . 24 . Entropic 46 | . . . . . . . . . . . . . . . . . . . . . . . . . . 8 . . 38 . . . . . . Robot Hit Streak 48 | 4 14 8 24 6 6 6 11 . 6 . . . 1 13 12 7 25 28 8 7 . 5 14 5 6 8 2 6 29 14 47 48 8 12 41 Robot Miss Streak 11 | 3 3 3 4 1 2 3 5 . 11 . . . 3 7 2 2 3 2 1 9 . 3 4 5 1 6 2 1 2 4 . 2 2 7 3 Penetration Max 2 | . . . . . . . . . . . . . . 1 1 . 1 1 . . . . . . . . . . . . . 1 2 2 1 Secondary Targets 17 | . 3 . 5 . 1 1 3 . . . . . . 1 . . 2 1 . . . . . . . . . . . . . . . . . Max Gunslinging Chain 1 | . 1 . 1 . 1 1 1 . . . . . . 1 . . 1 1 . . . . . . . . . . . . . . . . . Shots Hit Robots 2013 | 17 110 24 228 11 28 19 36 . 37 . 4 . 11 108 45 25 113 110 3 14 . 16 61 10 6 25 4 7 93 101 47 20 12 282 386 Core Hits 1099 | 5 47 10 69 6 14 16 25 . 23 . . . 5 55 22 9 69 53 1 8 . 9 31 10 1 14 4 . 31 90 21 16 11 158 266 Critical Kills 73 | . . . . 1 . . . . . . . . . . . . . 5 1 1 . . . . . . . . 1 . 3 7 6 22 26 Critical Parts Destroyed 131 | . . . . . 1 . 1 . . . . . . 2 . 1 2 1 . . . . . . . . . . . . 4 5 8 37 69 Critical Strikes 314 | . 4 . 14 1 1 . 1 . . . . . . 7 . 1 2 7 1 1 . . . . . . . . 13 17 7 13 14 74 136 Burn 17 | . 4 . 13 . . . . . . . . . . . . . . . . . . . . . . . . . . . . . . . . Meltdown 5 | . . . . . . . . . . . . . . . . . . 2 1 1 . . . . . . . . 1 . . . . . . Destroy 250 | . . . 1 1 1 . 1 . . . . . . 3 . 1 2 5 . . . . . . . . . . . . 7 12 14 69 133 Blast 26 | . . . . . . . . . . . . . . 4 . . . . . . . . . . . . . . . 17 . . . 2 3 Corrupt 2 | . . . . . . . . . . . . . . . . . . . . . . . . . . . . . . . . . . 2 . Sever 2 | . . . . . . . . . . . . . . . . . . . . . . . . . . . . . . . . 1 . 1 . Sunder 12 | . . . . . . . . . . . . . . . . . . . . . . . . . . . . . 12 . . . . . . Melee Attacks 194 | . . . . . . . 1 2 30 . 11 . 19 8 . . . 1 . . . . . . . . . . 3 19 28 15 10 44 3 Impact 21 | . . . . . . . . . . . . . 17 4 . . . . . . . . . . . . . . . . . . . . . Slashing 157 | . . . . . . . 1 2 16 . 11 . 2 4 . . . . . . . . . . . . . . 3 19 28 15 10 43 3 Piercing 16 | . . . . . . . . . 14 . . . . . . . . 1 . . . . . . . . . . . . . . . 1 . Sneak Attacks 28 | . . . . . . . . . 18 . 1 . 2 . . . . . . . . . . . . . . . . 2 3 1 . 1 . Combat Hostiles . | . . . . . . . . . . . . . . . . . . . . . . . . . . . . . . . . . . . . Follow-up Attacks . | . . . . . . . . . . . . . . . . . . . . . . . . . . . . . . . . . . . . Damage Inflicted 74533 | 201 1458 458 3124 127 402 305 493 98 2002 . 333 . 607 3336 945 490 3604 3266 173 530 . 572 3166 688 222 1163 124 288 4372 6561 2491 539 144 12858 19393 Guns 21026 | 201 1415 458 3124 127 328 305 493 . 269 . . . . 1191 819 490 3014 1089 . . . . . . . 295 . . . . 1442 268 144 4607 947 Cannons 37677 | . . . . . . . . . . . . . 28 2145 126 . . 2164 173 530 . 572 2457 331 211 817 124 240 4372 5964 . . . 4109 13314 Explosions 9164 | . . . . . 74 . . . . . . . . . . . 549 . . . . . 687 357 . . . . . . . . . 2365 5132 Melee 6339 | . . . . . . . . . 1733 . 333 . 579 . . . . . . . . . . . . . . . . 597 1049 271 . 1777 . Ramming 327 | . 43 . . . . . . 98 . . . . . . . . 41 13 . . . . 22 . 11 51 . 48 . . . . . . . Kinetic 30451 | . . . 835 127 316 305 493 . 269 . . . 28 3247 945 490 2762 1089 . . . . . . . . . . 279 5964 11 137 144 6473 6537 Thermal 33971 | 201 1415 458 2289 . 74 . . . . . . . . 89 . . 287 2164 173 530 . 572 3004 331 211 817 124 240 2184 . 1431 131 . 4390 12856 Explosive 417 | . . . . . . . . . . . . . . . . . . . . . . . 60 357 . . . . . . . . . . . Electromagnetic 824 | . . . . . 12 . . . . . . . . . . . 514 . . . . . 80 . . . . . . . . . . 218 . Impact 244 | . . . . . . . . . . . . . 244 . . . . . . . . . . . . . . . . . . . . . . Slashing 5905 | . . . . . . . . . 1543 . 333 . 335 . . . . . . . . . . . . . . . . 597 1049 271 . 1777 . Piercing 190 | . . . . . . . . . 190 . . . . . . . . . . . . . . . . . . . . . . . . . . Entropic 2204 | . . . . . . . . . . . . . . . . . . . . . . . . . . 295 . . 1909 . . . . . . Highest Corruption 72 | . 1 . . . . . . 7 . . . 6 6 7 23 31 31 1 1 1 1 1 4 4 4 4 1 1 6 1 3 3 . 41 72 Average Corruption 27 | . 1 . . . . . . 5 . . . 6 6 4 16 27 19 1 1 1 1 1 1 4 4 2 1 1 5 1 1 3 . 34 68 Corruption Purged 15 | . . . . . . . . . . . . . . 2 . . 13 . . . . . . . . . . . . . . . . . . Effects 977 | . . . . . . . . 3 . . . 1 14 45 18 7 38 2 1 1 4 5 5 10 13 1 5 . 39 9 3 7 . 265 481 Message Errors 218 | . . . . . . . . 1 . . . . 3 10 4 . 9 . . . . 1 . 2 2 . 2 . 8 6 2 3 . 64 101 Matter Fused 220 | . . . . . . . . 1 . . . . 7 12 6 1 1 . . . . . 3 2 4 1 . . 11 . . 2 . 68 101 Heat Flow Errors 97 | . . . . . . . . . . . . 1 2 4 1 2 4 . . . . . . 1 2 . . . 3 . . 1 . 22 54 Energy Discharges 101 | . . . . . . . . . . . . . . 9 4 . 2 . 1 . 2 3 1 3 1 . 2 . 6 3 . . . 31 33 Parts Rejected 11 | . . . . . . . . . . . . . . . . . 2 . . . . . 1 . . . . . 1 . . . . 1 6 Data Loss (minor) 97 | . . . . . . . . 1 . . . . 1 6 2 1 4 1 . 1 2 1 . 1 4 . 1 . 5 . 1 . . 24 41 Data Loss (major) 40 | . . . . . . . . . . . . . . . 1 . 3 . . . . . . . . . . . 3 . . . . 11 22 Misfires 37 | . . . . . . . . . . . . . 1 1 . . 3 . . . . . . . . . . . 1 . . . . 9 22 Alerts 19 | . . . . . . . . . . . . . . . . 1 1 . . . . . . . . . . . . . . . . 10 7 Misdirections 18 | . . . . . . . . . . . . . . . . . 3 . . . . . . . . . . . . . . . . 3 12 Weapon Failures 119 | . . . . . . . . . . . . . . 3 . 2 6 1 . . . . . 1 . . . . 1 . . 1 . 22 82 Overload Shots 17 | . . . . . . . . . . . . . . . . . . . 4 . . . 8 4 . 1 . . . . . . . . . Overflow Damage 2158 | . . . . . . . . . 184 . 168 . 17 5 . . 50 32 . 21 . 18 102 26 . 30 . . 227 68 . 163 . 313 734 Projectiles 1084 | . . . . . . . . . . . . . . 5 . . . 32 . 21 . 18 57 26 . 30 . . 227 68 . . . 168 432 Explosions 482 | . . . . . . . . . . . . . . . . . 50 . . . . . 45 . . . . . . . . . . 85 302 Melee 592 | . . . . . . . . . 184 . 168 . 17 . . . . . . . . . . . . . . . . . . 163 . 60 . Knockbacks 102 | . . . . . . . . . . . . . 1 9 4 . 1 . . . . . . . . . . . . 35 . . . 16 36 Impact 2 | . . . . . . . . . . . . . 1 . . . 1 . . . . . . . . . . . . . . . . . . Kinetic 98 | . . . . . . . . . . . . . . 8 3 . . . . . . . . . . . . . . 35 . . . 16 36 Secondary 2 | . . . . . . . . . . . . . . 1 1 . . . . . . . . . . . . . . . . . . . . Self-Inflicted Damage 829 | . . . 8 . . . . 98 . . . . . . . . 95 . . . . . 49 17 . . . . . . . . . 104 458 Shots 11 | . . . 1 . . . . . . . . . . . . . 1 . . . . . 1 1 . . . . . . . . . 1 6 Rammed 15 | . 3 . . . . . . . . . . . . . . . 2 2 . . . . . . 1 5 . 2 . . . . . . . Targets Rammed 26 | . 11 . . . . . . . . . . . . . . . 4 2 . . . . 1 . 1 5 . 2 . . . . . . . Kicked 7 | . 7 . . . . . . . . . . . . . . . . . . . . . . . . . . . . . . . . . . Crushed 4 | . 1 . . . . . . . . . . . . . . . 2 . . . . . 1 . . . . . . . . . . . . Highest Temperature 405 | 148 249 252 405 . . 7 18 . 1 . . 108 226 307 202 286 250 36 138 . . . 189 123 167 32 . 81 200 39 138 170 . 198 230 Average Temperature 80 | 65 78 83 119 . . 4 10 . 1 . . 60 99 84 38 162 72 12 76 . . . 95 61 58 15 . 39 89 7 54 49 . 88 86 Received Heat Transfer 3022 | . 222 63 318 . 49 20 . . 24 18 15 . 6 252 . . 684 216 24 . . . 365 . . 138 . 45 . 75 29 . . 213 246 Effects 4 | . . . 1 . . . . . . . . . . . . 3 . . . . . . . . . . . . . . . . . . . Energy Bleed 1 | . . . 1 . . . . . . . . . . . . . . . . . . . . . . . . . . . . . . . . Interference 3 | . . . . . . . . . . . . . . . . 3 . . . . . . . . . . . . . . . . . . . Siege Activations 34 | . . . . . . . . . . . . . . . . . 5 7 1 2 . 2 5 1 . 1 1 . 4 5 . . . . . Total Turns 529 | . . . . . . . . . . . . . . . . . 113 81 3 30 . 27 112 14 . 8 12 . 55 74 . . . . . Longest Duration 51 | . . . . . . . . . . . . . . . . . 38 21 3 17 . 14 51 14 . 8 12 . 31 29 . . . . . Robots Corrupted 3 | . . . . . . . . . . . . . . . . . 1 . . . . . . . . . . . . . . . . 2 . Combat Hostiles 2 | . . . . . . . . . . . . . . . . . . . . . . . . . . . . . . . . . . 2 . Parts Fried 8 | . . . . . . . . . . . . . . . 1 . 1 . . . . . . . . . . . . . . . . 6 . Impact Corruptions 2 | . . . . . . . . . . . . . 2 . . . . . . . . . . . . . . . . . . . . . . Robots Melted 11 | . . . 2 . . . . . . . . . . . . . . 2 1 1 . . 1 . . . . 1 1 . 1 . . 1 . Combat Hostiles 9 | . . . 2 . . . . . . . . . . . . . . . 1 1 . . 1 . . . . 1 1 . 1 . . 1 . Parts Melted 91 | . 11 5 12 . . . . . . . . . . . 1 . 1 15 4 2 . 1 13 2 2 1 . 1 9 . 9 . . 2 . Heat Transferred 35268 | 521 3863 1147 6105 . 100 . . . . . . . . 200 . . 675 3092 210 800 . 850 3630 480 250 1175 200 350 2900 . 1776 185 . 1349 5410 Parts Sabotaged 1 | . . . . . . . . . . . . . . . . . . . . . . . . . . 1 . . . . . . . . . Parts Stolen . | . . . . . . . . . . . . . . . . . . . . . . . . . . . . . . . . . . . . Parts Stripped . | . . . . . . . . . . . . . . . . . . . . . . . . . . . . . . . . . . . . Power Chain Reactions 3 | . . . . . . . . . . . . . . . . . 2 . . . . . 1 . . . . . . . . . . . . Missiles Intercepted . | . . . . . . . . . . . . . . . . . . . . . . . . . . . . . . . . . . . . Alert | -11 -10 -9 -9 -9 -7 -7 -7 -7 -7 -6 -6 -6 -6 -6 -6 -6 -6 -5 -5 -5 -5 -4 -4 -4 -4 -4 -3 -3 -3 -2 -2 -2 -1 -1 -1 ------- Run | Scr Mat Mat Sto Rec Fac Low Low Zio Dee Pro Fac Was Fac Ext Cet Arc Hub Fac Upp Upp Zhi Pro Fac Upp Upp War Pro Res Qua Res Tes Sec Acc Com Ac0 Peak Influence 1287 | 20 336 146 284 171 1172 . . . . . 267 53 237 273 382 212 771 607 . . . . 1287 . . . . 101 386 487 399 310 208 745 . Initial 955 | . 13 51 18 20 955 . . . . . . 38 23 59 152 152 74 367 . . . . . . . . . . 51 87 273 168 176 132 . Average 224 | 11 167 80 94 62 1031 . . . . . 58 38 110 134 299 190 337 466 . . . . 407 . . . . 49 194 175 268 220 126 400 . Maximum Alert Level 4 | . 1 . 1 . 4 . . . . . 1 . 1 1 1 1 3 2 . . . . 4 . . . . . 1 2 1 1 1 3 . Low Security (%) 49 | 100 80 100 92 100 . . . . . . 92 100 81 69 8 50 16 . . . . . 56 . . . . 100 70 62 15 37 91 2 . Level 1 22 | . 19 . 7 . . . . . . . 7 . 18 30 91 49 61 22 . . . . 3 . . . . . 29 29 84 62 8 8 . Level 2 7 | . . . . . . . . . . . . . . . . . 14 77 . . . . 17 . . . . . . 8 . . . 9 . Level 3 19 | . . . . . 68 . . . . . . . . . . . 7 . . . . . 6 . . . . . . . . . . 79 . Level 4 1 | . . . . . 31 . . . . . . . . . . . . . . . . . 16 . . . . . . . . . . . . Level 5 . | . . . . . . . . . . . . . . . . . . . . . . . . . . . . . . . . . . . . High Security . | . . . . . . . . . . . . . . . . . . . . . . . . . . . . . . . . . . . . Max Security . | . . . . . . . . . . . . . . . . . . . . . . . . . . . . . . . . . . . . Squads Dispatched 49 | . 4 . 1 . 4 . . . . . 1 . 1 4 . . 7 4 . . . . 8 . . . . 1 . 1 6 2 2 3 . Investigation 12 | . 3 . 1 . 1 . . . . . . . . 2 . . 1 1 . . . . 3 . . . . . . . . . . . . Extermination 11 | . . . . . . . . . . . . . . . . . . 1 . . . . 2 . . . . 1 . . 3 1 1 2 . Reinforcement 22 | . 1 . . . 1 . . . . . 1 . 1 2 . . 6 2 . . . . 2 . . . . . . 1 3 1 . 1 . Assault 3 | . . . . . 2 . . . . . . . . . . . . . . . . . 1 . . . . . . . . . . . . Garrison 1 | . . . . . . . . . . . . . . . . . . . . . . . . . . . . . . . . . 1 . . Intercept . | . . . . . . . . . . . . . . . . . . . . . . . . . . . . . . . . . . . . Construction Impeded 4 | . . . . . . . . . . . . . . 1 . . 1 . . . . . 1 . . . . . . . . 1 . . . Haulers Reinforced 5 | . . . . . 1 . . . . . . . . . . . . 2 . . . . . . . . . . . 1 1 . . . . Active Scanning Responses . | . . . . . . . . . . . . . . . . . . . . . . . . . . . . . . . . . . . . Cargo Convoy Interrupts . | . . . . . . . . . . . . . . . . . . . . . . . . . . . . . . . . . . . . Stealth | -11 -10 -9 -9 -9 -7 -7 -7 -7 -7 -6 -6 -6 -6 -6 -6 -6 -6 -5 -5 -5 -5 -4 -4 -4 -4 -4 -3 -3 -3 -2 -2 -2 -1 -1 -1 --------- Run | Scr Mat Mat Sto Rec Fac Low Low Zio Dee Pro Fac Was Fac Ext Cet Arc Hub Fac Upp Upp Zhi Pro Fac Upp Upp War Pro Res Qua Res Tes Sec Acc Com Ac0 Distress Signals 57 | . 2 1 2 . . . . . . . 1 . 2 4 1 . 2 . . . . . . . . . . . . 9 . 1 . 32 . Communications Jammed 8 | . . . . . . . . . . . . . . . . . . . . . . . . . . . . . . 1 7 . . . . Distress Signals 8 | . . . . . . . . . . . . . . . . . . . . . . . . . . . . . . 1 7 . . . . Times Spotted 565 | . 34 6 34 10 9 6 5 . 7 1 18 4 14 31 8 . 35 38 1 9 . 9 38 7 1 51 4 8 14 30 19 11 7 42 54 Peak Tracking Total 13 | . 7 2 8 6 6 3 4 . 3 1 8 4 4 5 5 . 9 5 1 5 . 5 13 5 1 13 4 5 3 4 4 5 3 11 8 Tactical Retreats 29 | . . . . . 1 . . . . . 6 . 2 5 . . 2 2 . . . . 2 . . 1 . . . 2 1 1 . 4 . Traps | -11 -10 -9 -9 -9 -7 -7 -7 -7 -7 -6 -6 -6 -6 -6 -6 -6 -6 -5 -5 -5 -5 -4 -4 -4 -4 -4 -3 -3 -3 -2 -2 -2 -1 -1 -1 ------- Run | Scr Mat Mat Sto Rec Fac Low Low Zio Dee Pro Fac Was Fac Ext Cet Arc Hub Fac Upp Upp Zhi Pro Fac Upp Upp War Pro Res Qua Res Tes Sec Acc Com Ac0 Traps Triggered 36 | . . . 1 . . . . . . . 1 . . 9 . . 2 1 . . . . . . . . . . . . . 1 . 21 . Indirectly . | . . . . . . . . . . . . . . . . . . . . . . . . . . . . . . . . . . . . Trap Hack Attempts . | . . . . . . . . . . . . . . . . . . . . . . . . . . . . . . . . . . . . Triggered . | . . . . . . . . . . . . . . . . . . . . . . . . . . . . . . . . . . . . Disarmed . | . . . . . . . . . . . . . . . . . . . . . . . . . . . . . . . . . . . . Reprogrammed . | . . . . . . . . . . . . . . . . . . . . . . . . . . . . . . . . . . . . Reused . | . . . . . . . . . . . . . . . . . . . . . . . . . . . . . . . . . . . . Traps Extracted . | . . . . . . . . . . . . . . . . . . . . . . . . . . . . . . . . . . . . Installed . | . . . . . . . . . . . . . . . . . . . . . . . . . . . . . . . . . . . . Triggered 16 | . . . . . . . 1 . . . . . . . . . . . 1 . . . . . . 13 . . . . . . . 1 . Machines | -11 -10 -9 -9 -9 -7 -7 -7 -7 -7 -6 -6 -6 -6 -6 -6 -6 -6 -5 -5 -5 -5 -4 -4 -4 -4 -4 -3 -3 -3 -2 -2 -2 -1 -1 -1 ---------- Run | Scr Mat Mat Sto Rec Fac Low Low Zio Dee Pro Fac Was Fac Ext Cet Arc Hub Fac Upp Upp Zhi Pro Fac Upp Upp War Pro Res Qua Res Tes Sec Acc Com Ac0 Machines Disabled 80 | . 1 . 3 . 4 . . 2 1 . . . . 3 . 3 7 1 . 1 . . 21 . . 1 . . 9 1 4 5 . 5 8 Max in Single Turn 6 | . 1 . 1 . 4 . . 1 1 . . . . 1 . 1 5 1 . 1 . . 6 . . 1 . . 1 1 1 1 . 2 1 Garrison Access 5 | . . . 1 . . . . . . . . . 1 . . . . . . . . . . . . . . 1 . 2 . . . . . Network Hub 1 | . . . . . . . . . . . . . . . . . 1 . . . . . . . . . . . . . . . . . . Machines Sabotaged . | . . . . . . . . . . . . . . . . . . . . . . . . . . . . . . . . . . . . Garrisons Compromised . | . . . . . . . . . . . . . . . . . . . . . . . . . . . . . . . . . . . . Overloaded Fab Kills . | . . . . . . . . . . . . . . . . . . . . . . . . . . . . . . . . . . . . Fab Network Shutdowns 1 | . . . . . . . . . . . . . . . . . . . . . . . 1 . . . . . . . . . . . . Hacking | -11 -10 -9 -9 -9 -7 -7 -7 -7 -7 -6 -6 -6 -6 -6 -6 -6 -6 -5 -5 -5 -5 -4 -4 -4 -4 -4 -3 -3 -3 -2 -2 -2 -1 -1 -1 --------- Run | Scr Mat Mat Sto Rec Fac Low Low Zio Dee Pro Fac Was Fac Ext Cet Arc Hub Fac Upp Upp Zhi Pro Fac Upp Upp War Pro Res Qua Res Tes Sec Acc Com Ac0 Machines Accessed 110 | . 8 1 12 11 5 . 1 . . . 8 . 7 13 1 . 1 2 1 1 4 . 6 . . 3 . 1 3 2 8 4 3 4 . Terminals 72 | . 6 1 10 5 2 . . . . . 5 . 5 13 1 . 1 1 . . . . 3 . . . . . 2 . 6 4 3 4 . Fabricators 5 | . . . . . 1 . . . . . 1 . . . . . . 1 . . . . 2 . . . . . . . . . . . . Repair Stations 4 | . . . . . 1 . . . . . 1 . 1 . . . . . . . . . . . . . . . . . 1 . . . . Recycling Units 9 | . 2 . 1 6 . . . . . . . . . . . . . . . . . . . . . . . . . . . . . . . Scanalyzers 6 | . . . . . 1 . . . . . 1 . . . . . . . . . . . 1 . . . . . 1 1 1 . . . . Garrison Access 4 | . . . 1 . . . . . . . . . 1 . . . . . . . . . . . . . . 1 . 1 . . . . . Total Hacks 315 | . 28 2 38 21 18 . 1 . . . 17 . 17 20 1 . 4 9 1 1 17 . 26 . . 6 . 2 7 4 30 16 13 16 . Successful 173 | . 9 1 18 14 7 . 1 . . . 12 . 11 11 1 . 2 4 1 1 17 . 16 . . 6 . 1 5 1 14 4 9 7 . Failed 142 | . 19 1 20 7 11 . . . . . 5 . 6 9 . . 2 5 . . . . 10 . . . . 1 2 3 16 12 4 9 . Catastrophic 18 | . 4 . 1 1 2 . . . . . . . . . . . . 1 . . . . 2 . . . . . . 1 4 2 . . . Database Lockouts . | . . . . . . . . . . . . . . . . . . . . . . . . . . . . . . . . . . . . Manual 144 | . 27 1 19 9 9 . . 1 . . 9 . 6 2 . . 1 8 . . . . 14 . . . . . 5 . 12 8 6 7 . Terminals 226 | . 26 2 31 15 9 . . . . . 10 . 13 20 1 . 4 5 . . . . 14 . . . . . 5 . 26 16 13 16 . Fabricators 17 | . . . . . 3 . . . . . 3 . . . . . . 4 . . . . 7 . . . . . . . . . . . . Repair Stations 8 | . . . . . 2 . . . . . 2 . 2 . . . . . . . . . . . . . . . . . 2 . . . . Recycling Units 12 | . 2 . 4 6 . . . . . . . . . . . . . . . . . . . . . . . . . . . . . . . Scanalyzers 18 | . . . . . 4 . . . . . 2 . . . . . . . . . . . 5 . . . . . 2 3 2 . . . . Garrison Access 8 | . . . 3 . . . . . . . . . 2 . . . . . . . . . . . . . . 2 . 1 . . . . . Terminal Hacks 105 | . 5 1 12 8 2 . 1 . . . 3 . 6 10 1 . 1 4 1 1 17 . 3 . . 6 . . 1 . 7 3 8 4 . Record 10 | . . . . . . . . . . . . . . . . . . . . . 5 . . . . 5 . . . . . . . . . Part Schematic 8 | . . . 2 2 . . . . . . . . . . . . . . . . 4 . . . . . . . . . . . . . . Robot Schematic 2 | . 2 . . . . . . . . . . . . . . . . . . . . . . . . . . . . . . . . . . Robot Analysis 4 | . . . . . . . . . . . . . . . . . . . . . 4 . . . . . . . . . . . . . . Prototype ID Bank 13 | . . . 3 3 . . . . . . . . . . . . . . . . 4 . 1 . . . . . . . 1 . 1 . . Open Door 19 | . . . 2 . . . 1 . . . . . 1 10 1 . . . 1 1 . . . . . 1 . . . . . . . 1 . Level Access Points 2 | . . . . . . . . . . . . . . . . . . . . . . . . . . . . . . . . 1 . 1 . Branch Access Points 7 | . 1 . . . 1 . . . . . 1 . 1 . . . . 1 . . . . 1 . . . . . . . . . 1 . . Machine Index 1 | . . . . . . . . . . . . . . . . . . . . . . . 1 . . . . . . . . . . . . Terminal Index 3 | . . . 1 . . . . . . . . . . . . . . . . . . . . . . . . . . . . 1 1 . . Scanalyzer Index 3 | . . . . . 1 . . . . . 1 . 1 . . . . . . . . . . . . . . . . . . . . . . Alert Level 10 | . . . . 1 . . . . . . . . . . . . 1 . . . . . . . . . . . 1 . 2 1 3 1 . Unreport Threat 9 | . . . 3 2 . . . . . . 1 . . . . . . 1 . . . . . . . . . . . . 1 . 1 . . Locate Traps 3 | . 1 . . . . . . . . . . . . . . . . . . . . . . . . . . . . . 1 . . 1 . Patrol Status 3 | . 1 . . . . . . . . . . . 1 . . . . 1 . . . . . . . . . . . . . . . . . Hauler Manifests 3 | . . 1 . . . . . . . . . . . . . . . 1 . . . . . . . . . . . . 1 . . . . Registered Components 1 | . . . . . . . . . . . . . 1 . . . . . . . . . . . . . . . . . . . . . . Registered Prototypes 1 | . . . . . . . . . . . . . 1 . . . . . . . . . . . . . . . . . . . . . . Zone Layout 3 | . . . 1 . . . . . . . . . . . . . . . . . . . . . . . . . . . 1 . 1 . . Fabricator Hacks 6 | . . . . . 1 . . . . . 2 . . . . . . . . . . . 3 . . . . . . . . . . . . Load Schematic 2 | . . . . . . . . . . . 1 . . . . . . . . . . . 1 . . . . . . . . . . . . Build 4 | . . . . . 1 . . . . . 1 . . . . . . . . . . . 2 . . . . . . . . . . . . Repair Station Hacks 7 | . . . . . 2 . . . . . 1 . 2 . . . . . . . . . . . . . . . . . 2 . . . . Scan Component 4 | . . . . . 1 . . . . . 1 . 1 . . . . . . . . . . . . . . . . . 1 . . . . Repair 3 | . . . . . 1 . . . . . . . 1 . . . . . . . . . . . . . . . . . 1 . . . . Recycling Unit Hacks 2 | . . . 2 . . . . . . . . . . . . . . . . . . . . . . . . . . . . . . . . Retrieve Components 2 | . . . 2 . . . . . . . . . . . . . . . . . . . . . . . . . . . . . . . . Scanalyzer 12 | . . . . . 2 . . . . . 2 . . . . . . . . . . . 5 . . . . . 2 . 1 . . . . Insert Component 8 | . . . . . 1 . . . . . 1 . . . . . . . . . . . 3 . . . . . 2 . 1 . . . . Analyze 4 | . . . . . 1 . . . . . 1 . . . . . . . . . . . 2 . . . . . . . . . . . . Garrison Access Hacks 4 | . . . 1 . . . . . . . . . 1 . . . . . . . . . . . . . . 1 . 1 . . . . . Seal Access 4 | . . . 1 . . . . . . . . . 1 . . . . . . . . . . . . . . 1 . 1 . . . . . Unauthorized Hacks 37 | . 4 . 3 6 . . . . . . 4 . 2 1 . . 1 . . . . . 5 . . . . . 2 . 4 1 1 3 . Terminals 25 | . 2 . 3 . . . . . . . 4 . 2 1 . . 1 . . . . . 2 . . . . . 2 . 3 1 1 3 . Track 9 | . 1 . . . . . . . . . 1 . . 1 . . 1 . . . . . . . . . . . . . 2 1 . 2 . Assimilate 3 | . . . 1 . . . . . . . 2 . . . . . . . . . . . . . . . . . . . . . . . . Botnet 7 | . . . 2 . . . . . . . . . 1 . . . . . . . . . 1 . . . . . 2 . . . 1 . . Disrupt 3 | . 1 . . . . . . . . . . . . . . . . . . . . . . . . . . . . . 1 . . 1 . Operators 3 | . . . . . . . . . . . 1 . 1 . . . . . . . . . 1 . . . . . . . . . . . . Fabricators 3 | . . . . . . . . . . . . . . . . . . . . . . . 3 . . . . . . . . . . . . Prioritize 1 | . . . . . . . . . . . . . . . . . . . . . . . 1 . . . . . . . . . . . . Haulers 2 | . . . . . . . . . . . . . . . . . . . . . . . 2 . . . . . . . . . . . . Repair Stations . | . . . . . . . . . . . . . . . . . . . . . . . . . . . . . . . . . . . . Recycling Units 8 | . 2 . . 6 . . . . . . . . . . . . . . . . . . . . . . . . . . . . . . . Tunnel 8 | . 2 . . 6 . . . . . . . . . . . . . . . . . . . . . . . . . . . . . . . Scanalyzers 1 | . . . . . . . . . . . . . . . . . . . . . . . . . . . . . . . 1 . . . . Researchers 1 | . . . . . . . . . . . . . . . . . . . . . . . . . . . . . . . 1 . . . . Garrison Access . | . . . . . . . . . . . . . . . . . . . . . . . . . . . . . . . . . . . . Data Cores Recovered . | . . . . . . . . . . . . . . . . . . . . . . . . . . . . . . . . . . . . Used . | . . . . . . . . . . . . . . . . . . . . . . . . . . . . . . . . . . . . Hacking Detections 68 | . 6 1 10 5 5 . . . . . 8 . 6 3 . . 1 2 . . . . 6 . . . . . . 1 5 4 2 3 . Full Trace Events 14 | . 5 . 1 2 1 . . . . . . . . 1 . . . 1 . . . . 3 . . . . . . . . . . . . Feedback Events 1 | . 1 . . . . . . . . . . . . . . . . . . . . . . . . . . . . . . . . . . Corruption 1 | . 1 . . . . . . . . . . . . . . . . . . . . . . . . . . . . . . . . . . Feedback Blocked . | . . . . . . . . . . . . . . . . . . . . . . . . . . . . . . . . . . . . Robot Schematics Acquired 2 | . 2 . . . . . . . . . . . . . . . . . . . . . . . . . . . . . . . . . . Robots Built 1 | . . . . . . . . . . . . . . . . . . . . . . . 1 . . . . . . . . . . . . Matter 351 | . . . . . . . . . . . . . . . . . . . . . . . 351 . . . . . . . . . . . . Time 93 | . . . . . . . . . . . . . . . . . . . . . . . 93 . . . . . . . . . . . . Total Robot Build Rating 7 | . . . . . . . . . . . . . . . . . . . . . . . 7 . . . . . . . . . . . . Part Schematics Acquired 9 | . . . 2 2 . . . . . . . . . . . . . . . . 4 . 1 . . . . . . . . . . . . Parts Built 5 | . . . . . 1 . . . . . 3 . . . . . . . . . . . 1 . . . . . . . . . . . . Matter 526 | . . . . . 212 . . . . . 102 . . . . . . . . . . . 212 . . . . . . . . . . . . Time 131 | . . . . . 53 . . . . . 25 . . . . . . . . . . . 53 . . . . . . . . . . . . Total Part Build Rating 15 | . . . . . 6 . . . . . 3 . . . . . . . . . . . 6 . . . . . . . . . . . . Parts Repaired 3 | . . . . . 1 . . . . . . . 1 . . . . . . . . . . . . . . . . . 1 . . . . Time 142 | . . . . . 54 . . . . . . . 54 . . . . . . . . . . . . . . . . . 34 . . . . Parts Recycled . | . . . . . . . . . . . . . . . . . . . . . . . . . . . . . . . . . . . . Recycled Matter . | . . . . . . . . . . . . . . . . . . . . . . . . . . . . . . . . . . . . Retrieved Matter . | . . . . . . . . . . . . . . . . . . . . . . . . . . . . . . . . . . . . Retrieved Components 10 | . . . 10 . . . . . . . . . . . . . . . . . . . . . . . . . . . . . . . . Parts Scanalyzed 3 | . . . . . 1 . . . . . 1 . . . . . . . . . . . 1 . . . . . . . . . . . . Part Schematics Acquired 1 | . . . . . . . . . . . . . . . . . . . . . . . 1 . . . . . . . . . . . . Parts Damaged . | . . . . . . . . . . . . . . . . . . . . . . . . . . . . . . . . . . . . Bothacking | -11 -10 -9 -9 -9 -7 -7 -7 -7 -7 -6 -6 -6 -6 -6 -6 -6 -6 -5 -5 -5 -5 -4 -4 -4 -4 -4 -3 -3 -3 -2 -2 -2 -1 -1 -1 ------------ Run | Scr Mat Mat Sto Rec Fac Low Low Zio Dee Pro Fac Was Fac Ext Cet Arc Hub Fac Upp Upp Zhi Pro Fac Upp Upp War Pro Res Qua Res Tes Sec Acc Com Ac0 Used RIF Installer . | . . . . . . . . . . . . . . . . . . . . . . . . . . . . . . . . . . . . Robots Hacked 1 | . . . . . . . . . . . . . . . . . . . . . . . . . . . . . . . . . . 1 . Non-combat . | . . . . . . . . . . . . . . . . . . . . . . . . . . . . . . . . . . . . Combat . | . . . . . . . . . . . . . . . . . . . . . . . . . . . . . . . . . . . . Robot Hacks Applied . | . . . . . . . . . . . . . . . . . . . . . . . . . . . . . . . . . . . . Manual 1 | . . . . . . . . . . . . . . . . . . . . . . . . . . . . . . . . . . 1 . Relay Couplers Released 5 | . . . . . . . . . . . . . . . . . . . . . . . . . . . . . . 5 . . . . . Machine Destruction 2 | . . . . . . . . . . . . . . . . . . . . . . . . . . . . . . 2 . . . . . Programmers 3 | . . . . . . . . . . . . . . . . . . . . . . . . . . . . . . 3 . . . . . Robots Rewired 5 | . . . . . . . . . . . . . . 5 . . . . . . . . . . . . . . . . . . . . . Allies Hacked . | . . . . . . . . . . . . . . . . . . . . . . . . . . . . . . . . . . . . Hacks Repelled . | . . . . . . . . . . . . . . . . . . . . . . . . . . . . . . . . . . . . Allies | -11 -10 -9 -9 -9 -7 -7 -7 -7 -7 -6 -6 -6 -6 -6 -6 -6 -6 -5 -5 -5 -5 -4 -4 -4 -4 -4 -3 -3 -3 -2 -2 -2 -1 -1 -1 -------- Run | Scr Mat Mat Sto Rec Fac Low Low Zio Dee Pro Fac Was Fac Ext Cet Arc Hub Fac Upp Upp Zhi Pro Fac Upp Upp War Pro Res Qua Res Tes Sec Acc Com Ac0 Total Allies 38 | . . . 2 . . . . 9 . . 2 1 . 20 . . . 3 . . . . 1 . . . . . . . . . . . . Largest Group 9 | . . . 2 1 1 . . 9 9 . 1 1 1 7 5 1 . 3 . . . . 1 . . . . . . . . . . . . Highest-Rated Group 380 | . . . 110 10 10 . . 380 380 . 26 31 10 275 275 156 . 93 . . . . 93 . . . . . . . . . . . . Highest-Rated Ally 156 | . . . 100 10 10 . . 95 95 . 26 31 10 156 156 156 . 31 . . . . 93 . . . . . . . . . . . . Total Orders 33 | . . . . . 2 . . . . . . . 2 . . . . . . . . . 1 . 1 . 4 . . 7 5 3 1 7 . STAY 5 | . . . . . 1 . . . . . . . 1 . . . . . . . . . . . . . 1 . . . . . . 2 . FOLLOW 2 | . . . . . . . . . . . . . 1 . . . . . . . . . . . . . 1 . . . . . . . . EXPLORE 5 | . . . . . 1 . . . . . . . . . . . . . . . . . . . . . . . . 1 . . . 3 . RETURN 21 | . . . . . . . . . . . . . . . . . . . . . . . 1 . 1 . 2 . . 6 5 3 1 2 . Ally Attacks 196 | . . . . . . . . . 33 . . 5 . 94 31 . . 33 . . . . . . . . . . . . . . . . . Total Damage 4291 | . . . . . . . . . 820 . . 43 . 1946 822 . . 499 . . . . 161 . . . . . . . . . . . . Kills 20 | . . . . . . . . . 6 . . . . 9 4 . . 1 . . . . . . . . . . . . . . . . . Allies Corrupted 1 | . . . . . . . . . . . . . . 1 . . . . . . . . . . . . . . . . . . . . . Allies Melted 2 | . . . . . . . . . . . . . . 1 . . . . . . . . . . . 1 . . . . . . . . . Intel | -11 -10 -9 -9 -9 -7 -7 -7 -7 -7 -6 -6 -6 -6 -6 -6 -6 -6 -5 -5 -5 -5 -4 -4 -4 -4 -4 -3 -3 -3 -2 -2 -2 -1 -1 -1 ------- Run | Scr Mat Mat Sto Rec Fac Low Low Zio Dee Pro Fac Was Fac Ext Cet Arc Hub Fac Upp Upp Zhi Pro Fac Upp Upp War Pro Res Qua Res Tes Sec Acc Com Ac0 Robot Analysis Total 4 | . . . . . . . . . . . . . . . . . . . . . 4 . . . . . . . . . . . . . . Derelict Logs Recovered 8 | . . . . . . 2 . 2 . 1 . . . . . . . . . 1 . 1 . . 1 . . . . . . . . . . Drone Launches 39 | . . . . . 1 . . . . . . . . . . . . . . . . . 3 1 . . 2 . . 8 12 4 2 6 . Drone Recoveries 33 | . . . . . . . . . . . . . . . . . . . . . . . 3 . 1 . 1 . . 8 11 5 1 3 . Exploration | -11 -10 -9 -9 -9 -7 -7 -7 -7 -7 -6 -6 -6 -6 -6 -6 -6 -6 -5 -5 -5 -5 -4 -4 -4 -4 -4 -3 -3 -3 -2 -2 -2 -1 -1 -1 ------------- Run | Scr Mat Mat Sto Rec Fac Low Low Zio Dee Pro Fac Was Fac Ext Cet Arc Hub Fac Upp Upp Zhi Pro Fac Upp Upp War Pro Res Qua Res Tes Sec Acc Com Ac0 Turns Passed 39656 | 97 2673 523 2382 165 427 391 389 1464 594 152 495 28 524 1807 376 104 627 1236 653 673 260 808 1035 501 624 1514 718 378 1494 2328 1011 653 283 5224 7045 Spaces Moved 26507 | 32 1486 230 1440 305 490 631 549 1970 957 387 1141 78 1096 1515 135 39 235 575 396 366 153 355 463 286 370 753 368 198 942 1461 617 404 192 3400 2492 Core 156 | . . . . . . . . 3 . . . . . 12 . . 7 134 . . . . . . . . . . . . . . . . . Treads 6074 | . 1039 133 91 . . . . . . . . . . 1 135 39 228 421 396 366 153 355 463 286 370 753 368 198 279 . . . . . . Legs 753 | 32 447 . . . . . . . . . . . . 254 . . . 20 . . . . . . . . . . . . . . . . . Wheels 10175 | . . 97 736 . . . . . . . . . . 113 . . . . . . . . . . . . . . 663 1461 617 404 192 3400 2492 Hover 2219 | . . . 424 305 490 631 369 . . . . . . . . . . . . . . . . . . . . . . . . . . . . Flight 7130 | . . . 189 . . . 180 1967 957 387 1141 78 1096 1135 . . . . . . . . . . . . . . . . . . . . . Fastest Speed 29 | 120 120 105 46 46 40 52 40 38 34 34 34 34 31 29 161 160 50 50 160 160 160 160 160 160 160 160 160 160 90 110 90 90 110 110 110 Average Speed 97 | 120 147 141 95 46 51 52 48 41 39 34 34 34 33 56 164 161 156 132 160 160 160 160 160 160 160 160 160 160 123 110 105 109 110 110 110 Slowest Speed 350 | 120 160 160 260 46 52 52 109 350 109 34 34 34 34 350 166 166 160 160 160 160 160 160 160 160 160 160 160 160 260 110 110 110 110 130 130 Overloaded Moves 24 | . . . . . 16 . 8 . . . . . . . . . . . . . . . . . . . . . . . . . . . . Propulsion Burnouts . | . . . . . . . . . . . . . . . . . . . . . . . . . . . . . . . . . . . . Robots Hopped 58 | . . . . . . . . . . . 26 . 13 19 . . . . . . . . . . . . . . . . . . . . . Cave-ins Triggered 19 | . . . . . . . . . . . . . . . . . . . . . . . . . . . . . . . . . 1 18 . Teleports 6 | . . . . . . . . . . . . . . . . . . . . . . . . . . . . 1 . 1 . 2 . 1 1 Exploration Rate (%) 53 | 4 98 19 95 75 14 82 56 85 82 62 26 75 28 84 65 61 27 11 57 44 60 62 17 58 60 79 57 9 67 48 67 19 7 83 78 Regions Visited 35 Branch Regions 24 Pre-discovered Areas 16 | . 2 . . 6 . . . 2 . 1 . . . . . . . . . 1 3 . . . . 1 . . . . . . . . . Known Exits Taken 12 | . . 1 . . 1 1 . . . . . . 1 . . . . 1 . . . . 1 . . . . 1 1 1 1 1 1 . . Unknown Exits Taken 21 | 1 1 . 1 1 . . 1 1 1 1 . . . 1 1 1 1 . 1 1 1 1 . 1 1 1 1 . . . . . . 1 . Scrap Searched 23 | . . . . . . 2 3 2 . 1 . . . . . . . . 4 3 . 2 . 2 4 . . . . . . . . . . Spaces Dug 201 | . . . 5 . . . 1 . . . 6 . . 3 . . 1 10 . 12 . . 29 8 . . . 17 15 24 18 8 8 30 6 Terrain Destroyed 1590 | . . . 5 . 49 . 1 2 . . 6 . . 31 18 1 163 29 5 37 . 21 166 46 2 16 13 33 37 72 20 12 11 148 646 Melee 72 | . . . . . . . 1 . . . 6 . . 1 . . . 1 . . . . . . . . . . . 16 18 8 8 13 . Projectile 719 | . . . . . . . . . . . . . . 30 18 1 3 28 5 37 . 21 65 18 2 16 13 33 37 56 2 2 2 33 297 AOE 781 | . . . 5 . 49 . . . . . . . . . . . 159 . . . . . 101 28 . . . . . . . . . 97 342 Terrain Rammed 2 | . . . . . . . . 2 . . . . . . . . . . . . . . . . . . . . . . . . . . . Walls Destroyed 2 | . . . . . . . . 2 . . . . . . . . . . . . . . . . . . . . . . . . . . . Machines Disabled . | . . . . . . . . . . . . . . . . . . . . . . . . . . . . . . . . . . . . Actions | -11 -10 -9 -9 -9 -7 -7 -7 -7 -7 -6 -6 -6 -6 -6 -6 -6 -6 -5 -5 -5 -5 -4 -4 -4 -4 -4 -3 -3 -3 -2 -2 -2 -1 -1 -1 --------- Run | Scr Mat Mat Sto Rec Fac Low Low Zio Dee Pro Fac Was Fac Ext Cet Arc Hub Fac Upp Upp Zhi Pro Fac Upp Upp War Pro Res Qua Res Tes Sec Acc Com Ac0 Total 38058 | 57 1798 387 2186 319 629 674 632 2603 1114 406 1199 78 1222 2313 253 60 376 942 411 416 170 572 658 309 398 1024 485 227 1205 2078 894 565 237 4631 6530 Wait 8351 | 1 173 128 470 3 102 31 35 596 83 20 43 . 90 561 81 2 72 205 5 13 . 198 129 7 4 192 104 1 98 419 160 84 8 716 3517 Move 26365 | 31 1485 229 1439 304 489 630 548 1969 956 386 1094 77 1070 1479 134 38 234 574 395 365 152 354 462 285 369 752 367 198 941 1460 616 403 190 3399 2491 Hop 49 | . . . . . . . . . . . 21 . 12 16 . . . . . . . . . . . . . . . . . . . . . Pick Up 266 | 3 10 3 20 3 4 1 3 4 4 . 4 1 5 7 3 3 4 14 3 6 5 1 5 2 4 11 3 3 18 8 4 5 1 43 48 Fast Attach 341 | 1 9 1 36 . 6 . 8 10 7 . 10 . 9 30 4 1 4 35 2 4 4 3 4 . 5 10 . 3 31 7 7 6 1 26 57 Attach 201 | 1 2 3 4 . 3 . 3 1 5 . 2 . 3 9 3 2 4 10 1 2 1 1 3 3 1 7 1 2 14 8 6 4 4 49 39 Detach 140 | . 2 1 5 . 1 . 1 . 6 . 2 . 2 13 1 1 . 13 . 1 1 . 3 . 3 3 . 1 8 7 5 1 5 31 23 Swap 155 | . 6 2 12 . 3 2 8 6 2 . 3 . 1 2 . . 1 3 . 1 . . 6 2 2 11 2 2 8 7 7 7 3 20 26 Drop 466 | 3 18 2 61 3 4 1 9 13 14 . 9 . 10 32 9 4 7 30 3 8 7 4 5 1 7 17 2 2 43 9 7 5 . 48 69 Fire 1303 | 17 82 18 137 6 17 9 16 . 7 . . . 1 62 18 9 45 55 2 16 . 11 40 9 2 16 6 14 41 134 54 27 14 161 257 Melee 194 | . . . . . . . 1 2 30 . 11 . 19 8 . . . 1 . . . . . . . . . . 3 19 28 15 10 44 3 Ram 3 | . . . . . . . . 2 . . . . . . . . 1 . . . . . . . . . . . . . . . . . . Kick 7 | . 7 . . . . . . . . . . . . . . . . . . . . . . . . . . . . . . . . . . Crush 18 | . 4 . . . . . . . . . . . . . . . 4 2 . . . . 1 . 1 5 . 1 . . . . . . . Escape Stasis 182 | . . . 2 . . . . . . . . . . 77 . . . . . . . . . . . . . . . . . 8 1 94 . Rewire 17 | . . . . . . . . . . . . . . 17 . . . . . . . . . . . . . . . . . . . . . Trap . | . . . . . . . . . . . . . . . . . . . . . . . . . . . . . . . . . . . . Miscellaneous . | . . . . . . . . . . . . . . . . . . . . . . . . . . . . . . . . . . . . Route ------- -11/Scrapyard -10/Materials (discovered 5 exits: *Mat x3 / *Min x2) -9/Materials -9/Storage (discovered 2 exits: [*Mat] / *Rec) -9/Recycling -7/Factory (discovered 2 exits: *Low x2) -7/Lower Caves -7/Lower Caves (discovered 2 exits: *Fac / *Zio) -7/Zion (discovered 2 exits: [*Dee] / [*Pro]) -7/Deep Caves -6/Proximity Caves -6/Factory (discovered 5 exits: *Fac / *Low x2 / Ext x2) -6/Waste -6/Factory (discovered 5 exits: *Fac / *Low x2 / *Ext x2) -6/Extension (discovered 2 exits: *Fac / *Cet) -6/Cetus -6/Archives -6/Hub_04(d) -5/Factory (discovered 2 exits: *Upp x2) -5/Upper Caves -5/Upper Caves -5/Zhirov -4/Proximity Caves -4/Factory (discovered 4 exits: *Res / *Upp x2 / Arm) -4/Upper Caves -4/Upper Caves (discovered 2 exits: *Res / *War) -4/Warlord -3/Proximity Caves -3/Research (discovered 3 exits: *Res x2 / *Qua) -3/Quarantine -2/Research (discovered 2 exits: *Acc / *Tes) -2/Testing -2/Section 7 -1/Access -1/Command (discovered 3 exits: *Sur x2 / [*Ac0]) -1/Access_0 Near Former Tau Ceti IV History --------- Turn | Location | Event 14 | -11/Scrapyard | Discovered new exit (range 3) 98 | -11/Scrapyard | Entered Materials 120 | -10/Materials | Identified exit to Mines 332 | -10/Materials | Build established: Mutant 433 | -10/Materials | Discovered new exit (range 10) 763 | -10/Materials | Discovered new exit (range 16) 1099 | -10/Materials | Discovered new exit (range 5) 2771 | -10/Materials | Entered another Materials area 2771 | -9/Materials | Evolved 2 slots: Utility x1, Weapon x1 2868 | -9/Materials | Discovered new exit (range 5) 2905 | -9/Materials | Identified exit to Storage 3058 | -9/Materials | Build established: Gunner 3294 | -9/Materials | Entered Storage 3559 | -9/Storage | Build established: Scavenger-Gunner 3877 | -9/Storage | Build established: Gunner 3879 | -9/Storage | Destroyed 7 combat bots 4133 | -9/Storage | Discovered new exit (range 16) 4656 | -9/Storage | Met 01-MTF 4916 | -9/Storage | Destroyed 01-MTF 4973 | -9/Storage | Found Prototype Device 4973 | -9/Storage | Identified 01-MTF's Autohacker 5053 | -9/Storage | Remotely autohacked Sealed Heavy Doors 5361 | -9/Storage | Build established: Tank 5661 | -9/Storage | Used back door to open Recycling access 5661 | -9/Storage | Discovered new exit (range 5) 5676 | -9/Storage | Entered Recycling 5676 | -9/Recycling | Accompanied by 1 ally 5721 | -9/Recycling | Spotter reported a threat 5727 | -9/Recycling | Spotter reported a threat 5728 | -9/Recycling | Spotter reported a threat 5747 | -9/Recycling | Spotter reported a threat 5761 | -9/Recycling | Spotter reported a threat 5761 | -9/Recycling | Spotter reported a threat 5774 | -9/Recycling | Spotter reported a threat 5775 | -9/Recycling | Spotter reported a threat 5780 | -9/Recycling | Spotter reported a threat 5800 | -9/Recycling | Spotter reported a threat 5812 | -9/Recycling | Spotter reported a threat 5827 | -9/Recycling | Spotter reported a threat 5827 | -9/Recycling | Discovered new exit (range 15) 5828 | -9/Recycling | Spotter reported a threat 5833 | -9/Recycling | Spotter reported a threat 5841 | -9/Recycling | Entered Factory 5841 | -7/Factory | Accompanied by 1 ally 5841 | -7/Factory | Evolved 4 slots: Propulsion x2, Utility x2 5863 | -7/Factory | Build established: Scavenger-Tank 5961 | -7/Factory | Repaired Centrium Light Armor Plating? 6002 | -7/Factory | Identified exit to Lower Caves 6083 | -7/Factory | Fabricated Adv. Hacking Suite (x1) 6241 | -7/Factory | First assault squad dispatched 6268 | -7/Factory | Entered Lower Caves 6298 | -7/Lower Caves | Attracted the attention of an 0b10 checkpoint 6346 | -7/Lower Caves | Identified exit to Lower Caves 6428 | -7/Lower Caves | Learned Factory non-interactive machine intel 6430 | -7/Lower Caves | Encountered a Warlord checkpoint 6659 | -7/Lower Caves | Entered another Lower Caves area 6722 | -7/Lower Caves | Discovered new exit (range 10) 6873 | -7/Lower Caves | Found Alien Artifact 6873 | -7/Lower Caves | Identified Core Expander 6873 | -7/Lower Caves | Installed Core Expander, added new Weapon slot 7015 | -7/Lower Caves | Discovered new exit (range 10) 7048 | -7/Lower Caves | Entered Zion 7074 | -7/Zion | Discovered new exit (range 15) 7105 | -7/Zion | Found CR-A16's Pointy Stick 7112 | -7/Zion | Learned Factory trap positions 7134 | -7/Zion | Learned location of Data Miner (-6) 7164 | -7/Zion | Given A8's code to call for help 7176 | -7/Zion | Gained Derelict followers 7188 | -7/Zion | Given the Hacking Drone Bay 7189 | -7/Zion | Found Prototype Device 7189 | -7/Zion | Identified Hacking Drone Bay 7229 | -7/Zion | Build established: Derelict-Tank 7233 | -7/Zion | Gained Derelict followers 7330 | -7/Zion | Learned Factory security intel 7696 | -7/Zion | Discovered new exit (range 5) 7767 | -7/Zion | System corruption cleaned by Quarantine Array 7949 | -7/Zion | Saw the warning signs outside the Deep Caves entrance 8445 | -7/Zion | Enhanced Grunt warped into view, answering call for help 8453 | -7/Zion | Enhanced Grunt warped into view, answering call for help 8512 | -7/Zion | Entered Deep Caves 8512 | -7/Deep Caves | Accompanied by 9 allies 8700 | -7/Deep Caves | Attacked by Z-Imprinter 8724 | -7/Deep Caves | Allies destroyed Z-Imprinter 8863 | -7/Deep Caves | Found Prototype Protection 8863 | -7/Deep Caves | Identified Zio. Heavy Carapace 8920 | -7/Deep Caves | Z-Facility disabled 9077 | -7/Deep Caves | Discovered new exit (range 7) 9089 | -7/Deep Caves | Build established: Mutant 9106 | -7/Deep Caves | Entered Proximity Caves 9178 | -6/Proximity Caves | Attracted the attention of an 0b10 checkpoint 9247 | -6/Proximity Caves | Discovered new exit (range 7) 9258 | -6/Proximity Caves | Entered Factory 9258 | -6/Factory | Evolved 2 slots: Utility x2 9259 | -6/Factory | Loaded intel: 98 trap records 9261 | -6/Factory | Loaded intel: 198 non-interactive machine locations 9290 | -6/Factory | Fabricated Lgt. Assault Rifle? 9354 | -6/Factory | Discovered new exit (range 4) 9385 | -6/Factory | Identified exit to Lower Caves 9510 | -6/Factory | Found Prototype Launcher 9510 | -6/Factory | Identified Rocket Array 9553 | -6/Factory | Identified exit to Extension 9634 | -6/Factory | Discovered new exit (range 8) 9726 | -6/Factory | Build established: Hacker-Mutant 9753 | -6/Factory | Manually triggered Chute Trap 9753 | -6/Factory | Sucked down chute 9753 | -6/Factory | Entered Waste 9754 | -6/Waste | Met a frightened Derelict 9756 | -6/Waste | Spotted C-40 Crusher 9761 | -6/Waste | Spotted C-40 Crusher 9768 | -6/Waste | EMP discharged 9768 | -6/Waste | Spotted C-40 Crusher 9771 | -6/Waste | Spotted C-40 Crusher 9772 | -6/Waste | Discovered new exit (range 16) 9772 | -6/Waste | Spotted C-40 Crusher 9781 | -6/Waste | Entered Factory 9800 | -6/Factory | 1 allies followed down the chute 9895 | -6/Factory | Repaired Centrium Light Armor Plating 9904 | -6/Factory | Discovered exit to Lower Caves (range 16) 10084 | -6/Factory | Build established: Mutant 10094 | -6/Factory | Discovered new exit (range 6) 10305 | -6/Factory | Entered Extension 10305 | -6/Extension | Accompanied by 1 ally 10316 | -6/Extension | Rescued a captive Derelict 10316 | -6/Extension | Rescued a captive Derelict 10370 | -6/Extension | Rescued a captive Derelict 10492 | -6/Extension | Destroyed 7 combat bots 10530 | -6/Extension | Rescued a captive Derelict 10530 | -6/Extension | Rescued a captive Derelict 10531 | -6/Extension | Rescued a captive Derelict 10542 | -6/Extension | Rescued a captive Derelict 10554 | -6/Extension | Rescued a captive Derelict 10558 | -6/Extension | Rescued a captive Derelict 10789 | -6/Extension | Build established: Hacker-Sprinter 10810 | -6/Extension | Spotted B-75 Beast 10833 | -6/Extension | Destroyed B-75 Beast 10836 | -6/Extension | Spotted B-75 Beast 11286 | -6/Extension | Rescued a captive Derelict 11480 | -6/Extension | Disrupted transfer network 11754 | -6/Extension | Rescued a captive Derelict 11755 | -6/Extension | Rescued a captive Derelict 11775 | -6/Extension | Rescued a captive Derelict 11921 | -6/Extension | Rescued A7 11980 | -6/Extension | Build established: Scavenger-Tank 12009 | -6/Extension | Rescued a captive Derelict 12009 | -6/Extension | Rescued a captive Derelict 12078 | -6/Extension | Discovered new exit (range 10) 12079 | -6/Extension | Discovered new exit (range 6) 12112 | -6/Extension | Entered Cetus 12112 | -6/Cetus | Accompanied by 5 allies (A7) 12117 | -6/Cetus | Acquired a Cetus Manufacturing Module code from A7 12134 | -6/Cetus | Spotted Cetus Guard 12134 | -6/Cetus | Spotted Cetus Guard 12143 | -6/Cetus | Allies destroyed Cetus Guard 12143 | -6/Cetus | Spotted Cetus Guard 12143 | -6/Cetus | Allies destroyed Cetus Guard 12144 | -6/Cetus | Spotted Cetus Guard 12150 | -6/Cetus | Destroyed Cetus Guard 12154 | -6/Cetus | Allies destroyed Cetus Guard 12195 | -6/Cetus | System corruption reached 10% 12443 | -6/Cetus | Escorted A7 to Cetus Mainframe 12460 | -6/Cetus | Discovered new exit (range 16) 12488 | -6/Cetus | Entered Archives 12488 | -6/Archives | Accompanied by 1 ally (A7) 12493 | -6/Archives | Received a hacking code to weaken MAIN.C 12550 | -6/Archives | System corruption reached 30% 12556 | -6/Archives | Met Zhirov 12562 | -6/Archives | Reinforcements dispatched to Archives 12564 | -6/Archives | Discovered new exit (range 16) 12592 | -6/Archives | Entered Hub_04(d) 13025 | -6/Hub_04(d) | Destroyed 7 combat bots 13164 | -6/Hub_04(d) | Network Hub disabled 13203 | -6/Hub_04(d) | Discovered new exit (range 14) 13219 | -6/Hub_04(d) | Entered Factory 13219 | -5/Factory | Evolved 2 slots: Power x1, Propulsion x1 13239 | -5/Factory | Lost 3 parts (1u2w) 13984 | -5/Factory | Identified exit to Upper Caves 14148 | -5/Factory | Spotted B-75 Beast 14369 | -5/Factory | Allied Derelicts emerged from ambush trap array 14449 | -5/Factory | Build established: Pyromaniac-Tank 14455 | -5/Factory | Entered Upper Caves 14794 | -5/Upper Caves | Spotted B-75 Beast 14799 | -5/Upper Caves | Destroyed B-75 Beast 15074 | -5/Upper Caves | Discovered new exit (range 16) 15108 | -5/Upper Caves | Entered another Upper Caves area 15144 | -5/Upper Caves | Learned location of Armory (-4) 15365 | -5/Upper Caves | Spotted B-75 Beast 15715 | -5/Upper Caves | Discovered new exit (range 5) 15756 | -5/Upper Caves | Found Alien Artifact 15781 | -5/Upper Caves | Entered Zhirov 15781 | -5/Zhirov | Discovered new exit (range 3) 15849 | -5/Zhirov | Found Alien Artifact 15854 | -5/Zhirov | Identified Integrated Dissipator 15854 | -5/Zhirov | Installed Integrated Dissipator, increased core heat dissipation (+20) 15874 | -5/Zhirov | Found Alien Artifact 15981 | -5/Zhirov | Learned location of Testing (-2) 16041 | -5/Zhirov | Entered Proximity Caves 16221 | -4/Proximity Caves | Received a Behemoth hack from an annoying Tinkerer 16620 | -4/Proximity Caves | Learned location of 1 exit from Research 16757 | -4/Proximity Caves | Discovered new exit (range 11) 16849 | -4/Proximity Caves | Entered Factory 16849 | -4/Factory | Evolved 2 slots: Propulsion x1, Utility x1 17111 | -4/Factory | Discovered new exit (range 16) 17252 | -4/Factory | Build established: Hacker-Tank 17370 | -4/Factory | Identified Transdimensional Reconstructor 17370 | -4/Factory | Identified Dimensional Node Initializer 17392 | -4/Factory | Fabricated A-27 Freighter? 17577 | -4/Factory | Identified exit to Upper Caves 17577 | -4/Factory | Identified exit to Armory 17588 | -4/Factory | Fabricated Mapping Drone Bay? 17633 | -4/Factory | Spotted B-86 Titan 17676 | -4/Factory | Local fabrication network quarantined 17849 | -4/Factory | First assault squad dispatched 17884 | -4/Factory | Entered Upper Caves 18345 | -4/Upper Caves | Discovered new exit (range 11) 18385 | -4/Upper Caves | Entered another Upper Caves area 18385 | -4/Upper Caves | Accompanied by 1 ally 18498 | -4/Upper Caves | Discovered new exit (range 15) 18504 | -4/Upper Caves | Learned 8 Research zone layouts 18987 | -4/Upper Caves | Discovered new exit (range 12) 19009 | -4/Upper Caves | Entered Warlord 19075 | -4/Warlord | System corruption cleaned by Quarantine Array 19301 | -4/Warlord | Learned Testing trap positions 19301 | -4/Warlord | Learned Armory stockpile data 19303 | -4/Warlord | Learned 4 Research zone layouts 19550 | -4/Warlord | Met Warlord 19574 | -4/Warlord | Found Prototype Reactor 19574 | -4/Warlord | Identified Vortex Chain Reactor 19575 | -4/Warlord | Warlord's base attacked by MAIN.C 19688 | -4/Warlord | Found Prototype Energy Gun 19690 | -4/Warlord | Found Prototype Energy Gun 19696 | -4/Warlord | Found Prototype Energy Cannon 19699 | -4/Warlord | Found Prototype Energy Cannon 19716 | -4/Warlord | Identified Vortex Shotgun (x2) 19717 | -4/Warlord | Identified Vortex Cannon (x2) 19808 | -4/Warlord | Initialized slip node 19925 | -4/Warlord | Warlord forces counterattacked 19970 | -4/Warlord | Spotted Striker 20107 | -4/Warlord | Spotted B-90 Cyclops 20226 | -4/Warlord | Spotted Striker 20240 | -4/Warlord | Spotted B-86 Titan 20240 | -4/Warlord | Spotted B-90 Cyclops 20250 | -4/Warlord | Warlord base infiltrated, sounded retreat 20353 | -4/Warlord | Spotted Striker 20357 | -4/Warlord | Destroyed Striker 20367 | -4/Warlord | Found Prototype Device 20368 | -4/Warlord | Identified Exp. Shock Absorption System 20371 | -4/Warlord | Spotted Striker 20371 | -4/Warlord | Spotted Executioner 20418 | -4/Warlord | Spotted Striker 20466 | -4/Warlord | Discovered new exit (range 14) 20476 | -4/Warlord | Spotted Striker 20485 | -4/Warlord | Destroyed Striker 20523 | -4/Warlord | Entered Proximity Caves 21197 | -3/Proximity Caves | Discovered new exit (range 11) 21241 | -3/Proximity Caves | Entered Research 21241 | -3/Research | Accompanied by 1 ally 21241 | -3/Research | Evolved 2 slots: Utility x2 21242 | -3/Research | Identified exit to Quarantine 21243 | -3/Research | Identified exit to Research 21501 | -3/Research | Found EM Disruption Field 21568 | -3/Research | Spotted B-86 Titan 21570 | -3/Research | Warped through subspace 21608 | -3/Research | Found Prototype Processor 21608 | -3/Research | Identified Spectral Analyzer 21619 | -3/Research | Entered Quarantine 21645 | -3/Quarantine | Cryocooling Duct disabled 21649 | -3/Quarantine | Lost 3 parts (1n1u1w) 21660 | -3/Quarantine | Ambient heat levels rising (+20) 21660 | -3/Quarantine | Non-combat units ordered to evacuate 21675 | -3/Quarantine | Cryocooling Duct disabled 21690 | -3/Quarantine | Ambient heat levels rising (+20) 21690 | -3/Quarantine | Combat units ordered to evacuate 21790 | -3/Quarantine | Quarantine Guard activated 21850 | -3/Quarantine | Spotted Quarantine Guard 21850 | -3/Quarantine | Spotted Quarantine Guard 21887 | -3/Quarantine | Destroyed Quarantine Guard 21927 | -3/Quarantine | Spotted Quarantine Guard 21936 | -3/Quarantine | Destroyed Quarantine Guard 21976 | -3/Quarantine | Spotted Quarantine Guard 21979 | -3/Quarantine | Spotted Quarantine Guard 21980 | -3/Quarantine | Cryocooling Duct disabled 21983 | -3/Quarantine | Destroyed Quarantine Guard 21995 | -3/Quarantine | Ambient heat levels rising (+20) 22001 | -3/Quarantine | Spotted Quarantine Guard 22002 | -3/Quarantine | Destroyed Quarantine Guard 22011 | -3/Quarantine | Destroyed Quarantine Guard 22016 | -3/Quarantine | Destroyed Quarantine Guard 22076 | -3/Quarantine | Spotted Quarantine Guard 22082 | -3/Quarantine | Cryocooling Duct disabled 22090 | -3/Quarantine | Destroyed Quarantine Guard 22097 | -3/Quarantine | Ambient heat levels rising (+20) 22201 | -3/Quarantine | Spotted Quarantine Guard 22202 | -3/Quarantine | Build established: Tank 22207 | -3/Quarantine | Destroyed Quarantine Guard 22407 | -3/Quarantine | Found Prototype Hackware 22410 | -3/Quarantine | Found Prototype Device 22430 | -3/Quarantine | Identified Exp. System Shield 22430 | -3/Quarantine | Identified Exp. Transmission Jammer 22531 | -3/Quarantine | Found Alien Artifact 22531 | -3/Quarantine | Identified Subatomic Replicator 22538 | -3/Quarantine | Discovered exit to Research (range 9) 22538 | -3/Quarantine | Spotted Quarantine Guard 22961 | -3/Quarantine | Found Alien Slashing Weapon 22980 | -3/Quarantine | Identified Sigix Broadsword 22996 | -3/Quarantine | Found Alien Impact Weapon 23015 | -3/Quarantine | Found Alien Artifact 23018 | -3/Quarantine | Found Alien Artifact 23026 | -3/Quarantine | Found Alien Artifact 23028 | -3/Quarantine | Found Alien Artifact 23039 | -3/Quarantine | Found Dimensional Node Initializer 23041 | -3/Quarantine | Found Dimensional Node Initializer 23104 | -3/Quarantine | Spotted Quarantine Guard 23113 | -3/Quarantine | Entered Research 23113 | -2/Research | Warlord forces began assault on 0b10 23113 | -2/Research | Evolved 2 slots: Utility x2 23223 | -2/Research | Research machine network offline 23241 | -2/Research | Met up with Warlord 23259 | -2/Research | Build established: Mutant 23520 | -2/Research | Borebot progress halted 23595 | -2/Research | Borebot progress halted 23659 | -2/Research | Borebot progress halted 23755 | -2/Research | Discovered new exit (range 15) 23920 | -2/Research | Warlord destroyed during the assault 24009 | -2/Research | Spotted Executioner 24015 | -2/Research | Destroyed Executioner 24118 | -2/Research | Discovered new exit (range 13) 24786 | -2/Research | Spotted Executioner 24787 | -2/Research | Spotted Executioner 24794 | -2/Research | Destroyed Executioner 24796 | -2/Research | Spotted Striker 24797 | -2/Research | Destroyed Executioner 24800 | -2/Research | Destroyed Striker 24801 | -2/Research | Spotted Striker 24804 | -2/Research | Destroyed Striker 24866 | -2/Research | Spotted Executioner 24872 | -2/Research | Destroyed Executioner 24872 | -2/Research | Spotted Executioner 24882 | -2/Research | Destroyed Executioner 24902 | -2/Research | Found Prototype Processor 24902 | -2/Research | Identified Exp. Core Analyzer 24907 | -2/Research | Spotted Executioner 24912 | -2/Research | Spotted Executioner 24913 | -2/Research | Destroyed Executioner 24918 | -2/Research | Destroyed Executioner 24927 | -2/Research | Spotted Striker 24927 | -2/Research | Spotted Striker 24934 | -2/Research | Destroyed Striker 24944 | -2/Research | Spotted Striker 24948 | -2/Research | Identified Hpw. Transdimensional Reconstructor (x4) 24948 | -2/Research | Warped through subspace 25074 | -2/Research | Spotted Striker 25080 | -2/Research | Destroyed Striker 25082 | -2/Research | Spotted Striker 25086 | -2/Research | Destroyed Striker 25312 | -2/Research | Identified exit to Testing 25441 | -2/Research | Entered Testing 25442 | -2/Testing | Loaded intel: 24 trap records 25490 | -2/Testing | Found Prototype Energy Gun 25490 | -2/Testing | Identified Warp Gun 25523 | -2/Testing | Found Prototype Leg 25718 | -2/Testing | Spotted PX-QWAHTZN2OT 25799 | -2/Testing | Repaired Adv. Weapon Cycler 25858 | -2/Testing | Found Prototype Energy Cannon 25860 | -2/Testing | Found Prototype Energy Cannon 25930 | -2/Testing | Build established: Hacker-Mutant 26072 | -2/Testing | Found Prototype Ballistic Gun 26072 | -2/Testing | Identified Hyp. Multirail 26124 | -2/Testing | Found Prototype Hackware 26124 | -2/Testing | Identified System Mapper 26282 | -2/Testing | Spotted Fortress 26359 | -2/Testing | Discovered new exit (range 5) 26362 | -2/Testing | Identified exit to Section 7 26452 | -2/Testing | Entered Section 7 26452 | -2/Section 7 | Accompanied by 1 ally 26463 | -2/Section 7 | Identified exit to Access 26538 | -2/Section 7 | Found Integrated Dissipator 26538 | -2/Section 7 | Installed Integrated Dissipator, increased core heat dissipation (+20) 26588 | -2/Section 7 | Spotted S7 Guard 26596 | -2/Section 7 | Found Alien Artifact 26596 | -2/Section 7 | Identified Integrated Singularity Reactor 26596 | -2/Section 7 | Installed Integrated Singularity Reactor, increased core energy generation (+20) 26610 | -2/Section 7 | Warped through subspace 26619 | -2/Section 7 | Found Alien Artifact 26619 | -2/Section 7 | Identified Integrity Redistributor 26619 | -2/Section 7 | Used Integrity Redistributor, redistributed integrity from core (-79) 26685 | -2/Section 7 | Used Subatomic Replicator to replicate Integrity Redistributor 26687 | -2/Section 7 | Found Integrity Redistributor 27002 | -2/Section 7 | Warped through subspace 27096 | -2/Section 7 | Spotted S7 Guard 27105 | -2/Section 7 | Entered Access 27105 | -1/Access | Evolved 2 slots: Power x1, Utility x1 27123 | -1/Access | Identified exit to Command 27274 | -1/Access | Garrison activated, responded to threat 27351 | -1/Access | Crushed by falling debris 27388 | -1/Access | Entered Command 27593 | -1/Command | Identified Imp. Potential Cannon 27759 | -1/Command | Spotted B-99 Colossus 27825 | -1/Command | Identified exit to Surface 28088 | -1/Command | Spotted Combat Programmer 28088 | -1/Command | Spotted Combat Programmer 28099 | -1/Command | Destroyed Combat Programmer 28104 | -1/Command | Spotted M Guard 28105 | -1/Command | Spotted M Guard 28114 | -1/Command | Destroyed Combat Programmer 28130 | -1/Command | Destroyed M Guard 28139 | -1/Command | Destroyed M Guard 28139 | -1/Command | All MAIN.C guards destroyed 28157 | -1/Command | Found Corrupted Prototype Protection 28157 | -1/Command | Identified Hvy. Regenerative Plating 28158 | -1/Command | System corruption reached 10% 28160 | -1/Command | Found Corrupted Prototype Device 28170 | -1/Command | Found Corrupted Prototype Reactor 28171 | -1/Command | Identified AEGIS Remote Shield 28173 | -1/Command | Found Corrupted AEGIS Remote Shield 28185 | -1/Command | Found Corrupted Hvy. Regenerative Plating 28190 | -1/Command | Found Corrupted Prototype Reactor 28285 | -1/Command | Met MAIN.C 28285 | -1/Command | Hacked MAIN.C using A7's code 28295 | -1/Command | 0b10 Conduit disabled 28347 | -1/Command | System corruption reached 30% 28385 | -1/Command | Destroyed MAIN.C Shell 28387 | -1/Command | MAIN.C activated Command garrisons 28457 | -1/Command | Crushed by falling debris 28472 | -1/Command | Crushed by falling debris 28483 | -1/Command | Crushed by falling debris 28489 | -1/Command | Crushed by falling debris 28490 | -1/Command | Crushed by falling debris 28491 | -1/Command | Crushed by falling debris 28492 | -1/Command | Used Integrity Redistributor, redistributed integrity from core (-245) 28496 | -1/Command | Crushed by falling debris 28499 | -1/Command | Crushed by falling debris 28506 | -1/Command | Crushed by falling debris 28510 | -1/Command | Crushed by falling debris 28513 | -1/Command | Crushed by falling debris 28514 | -1/Command | Destroyed 10 combat bots 28521 | -1/Command | Lost 3 parts (3u) 28523 | -1/Command | Crushed by falling debris 28524 | -1/Command | Used Integrity Redistributor, redistributed integrity from core (-184) 28525 | -1/Command | Core integrity fell below 50% 28536 | -1/Command | Crushed by falling debris 28547 | -1/Command | Crushed by falling debris 28554 | -1/Command | Crushed by falling debris 28566 | -1/Command | Crushed by falling debris 28590 | -1/Command | Crushed by falling debris 28620 | -1/Command | Crushed by falling debris 28631 | -1/Command | Destroyed MAIN.C 28858 | -1/Command | Build established: Generator-Mutant 29273 | -1/Command | Found Thermal Barrier 30191 | -1/Command | Spotted B-99 Colossus 30763 | -1/Command | Found Prototype Processor 31811 | -1/Command | Found Prototype Ballistic Gun 31811 | -1/Command | Identified Multirail 32239 | -1/Command | Found Prototype Reactor 32239 | -1/Command | Identified Zero-point Reactor 32243 | -1/Command | Found Vortex Chain Reactor 32265 | -1/Command | Found Prototype Processor 32269 | -1/Command | Found Prototype Device 32269 | -1/Command | Identified Exp. Weapon Cycler 32284 | -1/Command | Found Exp. Weapon Cycler 32592 | -1/Command | Warped through subspace to slip node 32592 | -1/Command | Discovered new exit (range 5) 32609 | -1/Command | Identified Exp. Targeting Computer (x2) 32612 | -1/Command | Entered Access_0 32614 | -1/Access_0 | Met Architect 32615 | -1/Access_0 | Architect warped through subspace 32630 | -1/Access_0 | Destroyed A8 32645 | -1/Access_0 | Architect warped through subspace 32661 | -1/Access_0 | Subspace Access Node disabled 32671 | -1/Access_0 | Architect warped through subspace 32702 | -1/Access_0 | Architect warped through subspace 32740 | -1/Access_0 | Architect warped through subspace 32768 | -1/Access_0 | Architect warped through subspace 32781 | -1/Access_0 | Architect warped through subspace 32811 | -1/Access_0 | Architect warped through subspace 32824 | -1/Access_0 | A6 warped into view 32841 | -1/Access_0 | Architect warped through subspace 32853 | -1/Access_0 | Destroyed A6 32883 | -1/Access_0 | Lost 3 parts (3u) 32898 | -1/Access_0 | Subspace Access Node disabled 33000 | -1/Access_0 | Subspace Access Node disabled 33011 | -1/Access_0 | Architect warped through subspace 33081 | -1/Access_0 | Found Sigix Broadsword 33088 | -1/Access_0 | Architect warped through subspace 33132 | -1/Access_0 | Architect warped through subspace 33165 | -1/Access_0 | A5 warped into view 33190 | -1/Access_0 | Architect warped through subspace 33192 | -1/Access_0 | Subspace Access Node disabled 33235 | -1/Access_0 | Lost 3 parts (3w) 33247 | -1/Access_0 | Destroyed 8 combat bots 33328 | -1/Access_0 | Core integrity fell below 20% 33416 | -1/Access_0 | Destroyed A5 33425 | -1/Access_0 | Found Prototype Device 33425 | -1/Access_0 | Identified Exp. Thermal Shield 33598 | -1/Access_0 | Found Exp. Weapon Cycler 33612 | -1/Access_0 | Found Exp. Targeting Computer 33686 | -1/Access_0 | Found Prototype Device 33686 | -1/Access_0 | Identified Desublimator 33876 | -1/Access_0 | Found Exp. Targeting Computer 33910 | -1/Access_0 | Found Prototype Device 33910 | -1/Access_0 | Identified Exp. Phase Shifter 33916 | -1/Access_0 | Found Exp. Phase Shifter 33925 | -1/Access_0 | Found Exp. Weapon Cycler 33945 | -1/Access_0 | Build established: Scavenger-Gunner 34306 | -1/Access_0 | A4 warped into view 34432 | -1/Access_0 | Destroyed A4 34467 | -1/Access_0 | Found Prototype Device 34467 | -1/Access_0 | Identified Adv. Kinecellerator 34470 | -1/Access_0 | Found Adv. Kinecellerator 34707 | -1/Access_0 | Found Enh. Gamma Bomb Array 34724 | -1/Access_0 | Found Prototype Protection 34724 | -1/Access_0 | Identified Centrium Heavy Armor Plating 34824 | -1/Access_0 | Found Prototype Protection 34824 | -1/Access_0 | Identified Exp. Powered Armor 35454 | -1/Access_0 | A3 warped into view 35495 | -1/Access_0 | Found Hpw. Transdimensional Reconstructor 35551 | -1/Access_0 | Destroyed A3 39647 | -1/Access_0 | Destroyed Architect 39648 | -1/Access_0 | Architect triggered a singularity event 39649 | -1/Access_0 | Warped through subspace to slip node 39649 | -1/Access_0 | Discovered exit to Surface (range 8) 39657 | *** | Escaped singularity! Last Messages --------------- 39644_ Architect suffers critical hit (Destroy). 39644_ Destroyed Adv. Armor Integrity Analyzer. 39645_ System corrupted: Hyp. Linear Accelerator jammed. 39646_ HV Slug penetrates Architect. 39646_ Architect knocked back. 39646_ HV Slug penetrates Architect. 39647_ Architect: "If I can't win, no one wins!" 39647_ Architect destroyed. 39648_ A0_COM: Initiating irreversible singularity event. Goodbye. 39649_ A0_COM: 10. 39649_ Warped through subspace, drawn to slip node. 39649_ EXIT=FOUND: SURFACE 39650_ A0_COM: 9. 39651_ A0_COM: 8. 39652_ A0_COM: 7. 39653_ A0_COM: 6. 39654_ A0_COM: 5. 39655_ A0_COM: 4. 39656_ A0_COM: 3. 39657_ A0_COM: 2. Map ----- +----------------------------------------------------+ | | | | | | | | | | | | | | | | | | | | | | | | | | | | | | | | | ?????????????????????????????????????????????????? | | ?????????????????????????????????????????????????? | | ?????????????????????????????????????????????????? | | ?????????????????????????????????????????????????? | | ?????????????????????????????????????????????????? | | ?????????????????????????????????????????????????? | | ????????????????????????###??????????????????????? | | ???????????????????????## ##?????????????????????? | | ???????????????????????# #?????????????????????? | | ???????????????????????# @ #?????????????????????? | | ??????????????????????## #?????????????????????? | | ??????????????????????# #?????????????????????? | | ??????????????????????# ##?????????????????????? | | ??????????????????????## #?????????????????????? | | ??????????????????????# #?????????????????????? | | ??????????????????????# ##?????????????????????? | | ??????????????????????# < #?????????????????????? | | ??????????????????????# ##?????????????????????? | | ??????????????????????## #??????????????????????? | | ???????????????????????####??????????????????????? | | ?????????????????????????????????????????????????? | | ?????????????????????????????????????????????????? | | ?????????????????????????????????????????????????? | | ?????????????????????????????????????????????????? | | ?????????????????????????????????????????????????? | | ?????????????????????????????????????????????????? | | ?????????????????????????????????????????????????? | | ?????????????????????????????????????????????????? | | ?????????????????????????????????????????????????? | | ?????????????????????????????????????????????????? | | ?????????????????????????????????????????????????? | | ?????????????????????????????????????????????????? | | ?????????????????????????????????????????????????? | | ?????????????????????????????????????????????????? | +----------------------------------------------------+ Best States ------------- Heat Dissipation 187 Coolant Potential 120 Energy Generation 116 Energy Capacity 1550 Matter Stores 800 Matter Capacity 800 Sight Range 24 Robot Scan Range 19 Terrain Scan Range 16 Terrain Scan Density 60 Jamming Range 22 Power Amplification 30 Additional Mass Support 12 Base Temperature (-) 200 Armor Coverage 2400 Resistance: KI 30 Resistance: TH 50 Resistance: EX 75 Resistance: EM 50 Power Shielding 90 Utility Shielding 66 Weapon Shielding 66 Weapon Cycling 30 Melee Speed Boost 30 Phase Shifting 20 Evasion (%) 68 Targeting Accuracy 36 Target Analysis 8 Core Analysis 15 Armor Integrity Analysis 40 Recoil Reduction 6 Energy Filtering 50 Particle Charging 25 Kinecelleration 50 Salvage Targeting 3 Offensive Hacking 47 Defensive Hacking 16 Item Schematics ----------------- Plasma Cutter | -9/Storage | Hacked Lgt. Assault Rifle | -9/Storage | Hacked Imp. Sensor Array | -9/Recycling | Hacked Weapon Cycler | -9/Recycling | Hacked Assault Drone Bay | -5/Zhirov | Free Exp. Heat Sink | -5/Zhirov | Free Exp. Optical Array | -5/Zhirov | Free Imp. Arc Thrower | -5/Zhirov | Free Mapping Drone Bay | -4/Factory | Scanalyzed Robot Schematics ------------------ M-13 Machinist | -10/Materials | Hacked O-16 Technician | -10/Materials | Hacked Fabricated ------------ Adv. Hacking Suite | x1 | -7/Factory | Preloaded Lgt. Assault Rifle | x3 | -6/Factory A-27 Freighter | x1 | -4/Factory | Preloaded Mapping Drone Bay | x1 | -4/Factory Alien Tech Used ----------------- Core Expander Integrated Dissipator Dimensional Node Initializer Transdimensional Reconstructor Subatomic Replicator Sigix Broadsword High-powered Transdimensional Reconstructor Integrated Singularity Reactor Integrity Redistributor Achievements -------------- None Challenges ------------ None Game ------ Seed ImpactResetDisintegrator Manual? 0 Play Time 04:47:44 Cumulative 2219.0 hours Start 2021.09.15 @ 23:55:28 End 2021.09.16 @ 10:40:37 Sessions 5 Manual Loads 0 Difficulty Rogue Special Mode None Game No. 2684 Rogue 2676 Adventurer 0 Explorer 8 Win Type 6 Total 257 Types 47/32/93/3/3/5/71/2/1 Lore% 99 Gallery% 99 Achievement% 100 Wizard Run 0 Options --------- ASCII 0 Keyboard 1 Movement Vi Keybinds 1 Fullscreen 1 Font 18/SmallcapsGlow Map View 76x50 Tactical HUD 1 Map Filters NONE Filters NONE Steam 1 RUN: 4ba6c551-bd31-4395-8d62-54084f730128